Workbook

Sheet Cover
A23: FC360
A25: Fire Detection System
A27: FC360 - Cerberus FIT Quantities Tool
A29: Version 1.4
D56: Smart Infrastructure

Sheet RevisionNotes (hidden)
A1: Current Version:
A3: A6V10211118_f_en_--_FX7210-QuantitiesTool.xls (25. June 2010)
A5: Martin Luethi <martin.luethi@siemens.com>
A7: - changelog:
A8: - Changes for MP3.0
A9: - add FC726-ZA with CardCage5 with Linecard FCL2001 (C-NET) and FCI2008 (I/O-programmable)
A10: - add new external supply output1 and 2 row for Scalance X204-2 / S612
A11: - C-NET changes and correction:
A12: - add new C-NET device FDCAI221 (Adressable alarm indicator)
A13: - add new wirless C-NET device DOW1171, SMF6120 and FDCW22
A14: - change name from C-NET device "DJ119x" to "DJ119x/FDAI9x"
A15: - change C-NETTK from FDCL221-M - Multi line isolator from 1 to 9
A16: - correct max. amount check on C-NET Terminals
A17: - reduce capacity from FA2009-A1 battery from 110Ah to 100Ah
A19: History
A21: A6V10211118_e_en_--_FX7210-QuantitiesTool.xls (18. November 2009)
A23: Martin Luethi <martin.luethi@siemens.com>
A25: - changelog:
A26: - Changes for Office 2007 adaptation (some commands are not identical with office 2003)
A27: - activate sheet command is necessary before a …select command
A28: - rename sheets after copy sheets with index-reference (copied sheet is not active as in office 2003)
A29: - copy formula from FDnet_Calc_Ref to FDnet_Constants
A30: - Do not show working on screen with command "ScreenUpdating"
A32: A6V10211118_d_en_--_FX7210-QuantitiesTool.xls (2. July 2009)
A34: Martin Luethi <martin.luethi@siemens.com>
A36: - changelog:
A37: - Delete Missing VISXDATA 1.0 in VBA References
A38: - change macros name from german to english (BeiKlick - ByClick, BeiAenderung - ByChange)
A40: A6V10211118_c_en_--_FX7210-QuantitiesTool.xls (24. April 2009)
A42: Martin Luethi <martin.luethi@siemens.com>
A44: - changelog:
A45: - CRs FSP00067214
A46: - rename FDCL221 and FDCL221-M on sheets Fdnet_Ref and Fdnet_Calc_Ref
A47: - remove FDBZ292 - Air Sampling on sheets Fdnet_Ref and Fdnet_Calc_Ref
A48: - Reference for C-Net devices: 704-006-004_FS_Peripheral_Panel_Compatibility / Rev. 32
A51: A6V10211118_b_en_--_FX7210-QuantitiesTool.xls (17. March 2009)
A53: Martin Luethi <martin.luethi@siemens.com>
A55: - changelog:
A56: - impact through new generating of additional sheets
A57: - excel supported with visual basic script
A58: - dependent on the selected station, additonal sheets are generated
A59: - updated "FDnet_Ref" and "FDnet_Calc_Ref" sheets with INDIRECT links, reference for copy
A60: - new "FDnet Constants" sheet for FDnet constants definition
A61: - Updating "Fx20xx_Panel and "Panel_comp" sheets for generated sheets
A62: - CRs FSP00065588, FSP00065587, FSP00065589
A63: - Rename visible names from Fdnet to C-NET
A66: A6V10211118_a_en_--_FX7210-QuantitiesTool.xls (14. November 2008)
A68: Martin Luethi <martin.luethi@siemens.com>
A70: - changelog:
A71: - New compilation from 009716_e_en_--_FX2010-SintesoQuantitiesTool.xls

Sheet Instructions
A1: Instruction of planning of FC360 fire control panel
A3: General information:
A4: The project planning of an FC360 fire control panel can be performed completely with this tool.
A6: Purpose:
A7: With the project planning of the fire control panel, loads of the fire control panel, line card and necessary batteries are verified. This results in the definite ordering.
A8: This instruction includes two parts: planning of the panel load and planning of the detection line, which correspond to the two sheets "FC360_Panel" and "C-NET _Module2" respectively.
A10: Part 1. Planning of the panel load
A11: This part intends to give an instruction on how to fill out sheet 'FC360_Panel' step by step.
A12: Step 1. Panel selection
A23: (1) Panel selection
A24: Panel type is 'FC361' or 'FC362'. For FC361, FC361-ZZ and FC361-ZA can be selected. For FC362, FC362-ZZ and FC362-ZA can be selected. For more information about panel types, see document A6V10421795 (http://www.siemens.com/download?A6V10421795).
A25: (2) Field devices
A26: C-NET Module2 Here shows the power consumed by C-NET which comes from sheet 'C-NET_Module2'.
A28: Step 2. Filling outputs of mainboard
A29: Mainboard outputs include auxiliary power load and loads of the two sounder lines.
A39: (1) Sounder lines
A40: 2 sounder lines are provided. Each sounder line has an output limitation of 0.5 A. The total output of the two sounder lines shall not be greater than 0.5 A.
A41: Cell changes to orange if, o Value is greater than 0.5A. o Summed value of the two sounder lines is greater than 0.5 A.
A43: (2) Auxiliary power
A44: Basically auxiliary power is used to provide power to external devices. The maximum capacity is 0.2 A.
A45: Cell changes to orange if o Value is greater than 0.2A
A47: Step 3. Filling options
A59: (1) Permanent Ethernet connection
A60: If a permanent Ethernet connection is used, select "YES", otherwise select "NO".
A62: (2) RS Module
A63: RS module can be RS232 module or RS485 module. "No module" means no RS232 or RS485 module is equipped.
A65: (3) PMI-Options
A66: The options can be LED indicator (32 zones), Evacuation module (NL) or No module.
A68: (4) Output card (4M)
A69: Output card (4M) Output card (4M) equipped or not. If no, sub options are collapsed.
A70: Power supply of Output card (4M) When Output card (4M) is equipped, it can be powered by external power supply or internal power supply. If it's powered externally, sub options are collapsed.
A73: Outputs of Output card (4M) If Output card (4M) is powered internally, configure 4 outputs here.
A74: Each output can be configured as Fire control, RT Fault, RT Fire or Sounder line. Input load in quiescent condition but set value in alarm condition to 0 if an output is configured as RT Fault. Otherwise, input load in alarm condition but set value in quiescent condition to 0.
A75: Note that output voltage of output card is DC 26 V.
A78: Step 4. Panel and Supply & battery check
A105: (1) Battery required standby-time
A106: Input required standby-time and alarm-time (after standby). Battery calculation depends on data input here.
A108: (2) Battery calculation
A109: Required battery It is the required battery capacity which is calculated by data input above. Calculation formula is as follows,
A112: security_factor: for no more than 24-h standby, security_factor is 1.25; for more than 24-h standby, security_factor is 1.
A113: Available batteries It's the battery which matches the panel or has a bigger capacity than required.
A114: Cell changes to red if £ No appropriate battery is available.
A116: (3) Supply calculation
A117: Maximal current of power supply Required load of power supply by calculation. It equals required current of power supply multiplied by voltage DC 24 V.
A118: Required supply Required load of power supply by calculation. It equals required current of power supply multiplied by voltage 24 Vdc.
A119: Integrated supply Default power supply in panel.
A120: Available supply If no available power supply meets the requirement (capacity is bigger than the required load), "--" is shown. Otherwise it shows the capacity and power supply type.
A121: Cell changes to red if £ No appropriate power supply is available.
A123: (4) Configuration result
A124: It shows if the configuration has passed the check.
A127: Part 2. Planning of detection line
A128: Planning of the detection line is implemented in sheet "C-NET_Module2".
A129: Procedure:
A130: Step 1: Input number of devices.
A134: 1.1 Choose correct Alarm indicator extras
A135: --> None: At Alarm state Indicator flashing every 1s (10 Internal and 10 External AI's)
A136: --> Steady ON: At alarm state Indicator Steady ON (32 AI's)
A137: --> Operation Indicator: At Quiet state Indicator flashing every 1s (All AI's), at Alarm state Steady ON (10 AI's)
A139: 1.2 Device population
A140: Click the dropdown arrow under TRUE, select the detection line type, loop or stub. Default is 'Loop'. When ‘Stub’ is selected, two stubs are displayed.
A145: 1.3 Enter the number of devices per loop / stub in the table
A146: Click on "+" on the left column of each type of devices to spread out devices list and enter the number of devices per loop / stub
A147: Devices type: Point detectors; Special detectors; Manual call points; Line modules; Alarm devices - Sound; Alarm devices - Sound and Voice; Alarm devices - Sound and Light (Beacon); Alarm devices - Sound and Voice and Light (Beacon) and Operation and indication devices
A168: Reminders: o Number of FT2010 or FT2011: Max. 4 is recommended due to its heavier load. o Summed number of FT2010 and FT2011 devices: Max. 4.
A170: Step 2. Input cable characteristics
A172: 2.1 Cable characteristics
A173: Click the dropdown arrow of optional frame, select detection line cable type. Default is 'Enter cable parameter manually'.
A174: Define four parameters here: Cable length for line resistor, Cable length for line capacity, Resistance value R' of cable and Capacitance value Cs' of cable. If one specific type of cable is selected, R' and Cs' will be automatically filled out. Appendix A shows examples of other different cable types.
A181: (1) Cable length for line resistor
A182: Length of line resistor is calculated from each loop connection to the farthest detector. See graph below.
A200: Two values are calculated. One is from Loop1-A, while the other one is from Loop1-B. The bigger one is used as length of line resistor.
A201: Cell changes to orange if, o Length for line resistor is greater than 3300 m. o Length for line resistor is greater than the length for line capacity.
A203: (2) Cable length for line capacity
A204: To determine the length for line capacity, the following cable lengths must be added: o Total loop length. o Length of all stub lines. o Length of all cables to all external alarm indicators. o Length of all cables to external circuits (e.g. fire controls).
A223: Total length of all cables is the length for line capacity.
A224: Cell changes to orange if, o Length for line capacity is greater than 5000 m. o Length for line resistor is greater than length for line capacity.
A226: (3) Resistance value R' of cable
A227: Depending on the cable type, R' can be the cable resistance per km (Ω/km). This corresponds to the resistance value for both cable conductor strings. If R' is unknown, it can be calculated with the following formula:
A233: Where, ρ (rho) Specific electrical resistance for copper (constant: 0.0178 Ωmm/m) 2000 2 km in m (both conductors for 1 km cable). A Cable cross-section [mm 2 ].
A235: (4) Capacitance value Cs' of cable
A236: Cs' is the capacitance per km between one conductor and the other conductor connected to the first one across the shield. Cp' is the capacitance between the two conductors per km. The cable manufacturer usually states the capacity Cp'.
A237: For unshielded cables,
A240: For shielded cables, if only Cp' is known, but not Cs', the following rule of thumb is used,
A244: 2.2 Calculation characteristics
A246: Choose calculation characteristics
A247: --> Worst case: All devices are placed at end of line for calculation.
A248: --> Equally: All devices are distributed equally over cable length. Possibility to add extra start and end cable length.
A257: (1) "Worst case" calculation
A258: Used if: You want to be sure that function is guaranteed for all device distribution. Limitation: - Stub on Loop (except capacity calculation).
A273: (2) "Equally" calculation
A274: Used if: - Devices are distributed nearly equal over loop. Attention: Loop function is not guaranteed if distribution is unequal. - Possibility to add start and end length without devices. Limitation: - Stub on Loop (except capacity calculation).
A289: Step 3. Check the analysis of configuration
A290: After steps 1~2, click button " Press Button to refresh calculation" on the top or bottom and the tool gives an analysis in accordance with the inputted data as follows.
A291: If any cell changes to red, it means overrun.
A310: (1) Device information
A311: Addressindex (AK) per loop/stub Number of bus addresses used by devices on a loop or stub (including sub-addresses).
A312: Total Adressindex (AK) per Line Card Number of bus addresses used by devices on all loops and stubs (including sub-addresses).
A313: Cell changes to red if, o Value > 126
A315: (2) Alarm calculation
A317: Maximum alarm current per Line Card The total alarm current of detective lines in alarm state on all loops and stubs
A318: Total alarm current per Line Card The total alarm current of detective lines in alarm state on a loop or stub
A319: Current consumption alarm (at Panel by 24V) Total consumption alarm current on panel 24V power supply
A320: Cell changes to red if, o Value of total alarm current larger than Maximum alarm current
A323: (3) Quiet calculation
A330: (4) Cabling information
A332: Resistor load per Loop / Stub Current wire resistor based on 'Length for line resistor' and 'Resistance value R' of cable' in step 2.
A334: Additional possible resistor load per Loop / Stub (approximate estimate, dRmax) Except planning cable, the additional possible cable resistance would be allowed.
A335: Additional possible cable length per Loop / Stub (approximate estimate) Except planning cable length, the additional possible cable length would be allowed.
A336: Cell changes to red with deviation value if, o Value is less than application needs.
A338: Maximum line capacitive per Loop / Stub Allowable maximum line capacity per loop/stub.
A339: Cable capacitive per Loop / Stub Current wire capacity based on 'Cable length for line capacity' and 'Capacitance value Cs' of cable' in step 2.
A340: Cell changes to red if, o Value is greater than 'Maximum line capacitive per Loop / Stub’.
A341: Maximum line capacitive per Line Card Allowable maximum capacity per panel. Total capacity of all loops and stubs shall not be greater than it.
A342: Total capacitive load per Line Card Total capacity of all loops and stubs.
A343: Cell changes to red if, o Value is greater than ‘Maximum line capacitive per Line Card’.
A345: (5) Indication of result
A346: If all inputs are right, a green symbol 'Configuration valid' is shown, otherwise a red symbol 'Configuration not valid' is shown.
A357: Appendix A. Cable resistance and cable capacitance
A358: The tables below show the cable resistance (R') and cable capacitance (Cs') of different cable types. The values given are reference values and may vary from one manufacturer to another. Identical cable designations do not guarantee that the cables have the same values. They may differ depending on the manufacturer.

Sheet FC360_Panel
B1: Planning of an FC360 Fire Control Panel
B3: Purpose:
B4: With the project planning of the fire control panel the load of the fire control panel and the necessary batteries are verified. This results in the definite:
B5: - type of fire control panel.
B6: - type of batteries and power supply.
B7: Procedure:
B8: 1) Choose panel FC361 or FC362.
B9: 2) Choose panel variant.
B10: 3) Fill out C-NET_Module2 and get green 'Configuration valid'
B11: 4) Enter other loads from outputs and options.
B12: 5) Enter required stand-by time.
B13: 6) The program calculates the result automatically after you enter or update any parameter.
B14: --> The program calculates the necessary batteries and the necessary power supply.
B15: --> The program gives you a hint, whether…
B16: … batteries fit in the chosen panel variant or additional housings must be ordered.
B17: … power supply is integrated in the chosen panel variant or additional supplies must be ordered.
B18: --> The panel configuration must be 'Configuration ok' with green thumb and smile face before continuing.
B20: Please consider:
B23: yellow fields, Must be filled in by the user.
B24: orange fields, Shows an input data error. These fields must be filled in by the user.
B25: light green fields, Calculated value, additional information for the user. Field must not be changed by the user.
B26: green fields, Calculated value, configuration valid. Field must not be changed by the user.
B27: red fields, Calculated value, configuration invalid. Field must not be changed by the user.
A30: Panel selection
B31: Help values
E32: Selection Panel Type
D33: 1 | E33: FC361 | G33: =Panel_values!M3 -> 4 | H33: Variants
D34: 2 | E34: FC362 | G34: =Panel_values!M4 -> 4 | H34: Variants
D35: 3 | G35: =Panel_values!M5 -> 3 | H35: Variants
D36: 4 | G36: =Panel_values!M6 -> 1 | H36: Variants
D37: 5 | G37: =Panel_values!M7 -> 2 | H37: Variants
D38: 6 | G38: =Panel_values!M8 -> 0 | H38: Variants
E41: 1 | G41: (Panel-type, # of row in tables on sheet "Panel_values")
E43: Selection Panel Variant
D44: 1 | E44: =VLOOKUP($E$41,Panel_values!$A$3:$L$8,2) -> FC361-ZZ
D45: 2 | E45: =VLOOKUP($E$41,Panel_values!$A$3:$L$8,3) -> FC361-ZA
D46: 3 | E46: =VLOOKUP($E$41,Panel_values!$A$3:$L$8,4) -> FC361-YZ | H46: Amount CardCage2 | I46: 0
D47: 4 | E47: =VLOOKUP($E$41,Panel_values!$A$3:$L$8,5) -> FC361-YA | H47: Amount CardCage5 | I47: 0
D48: 5 | E48: =VLOOKUP($E$41,Panel_values!$A$3:$L$8,6) -> --
D49: 6 | E49: =VLOOKUP($E$41,Panel_values!$A$3:$L$8,7) -> -- | H49: ActualStationType | I49: 1
D50: 7 | E50: =VLOOKUP($E$41,Panel_values!$A$3:$L$8,8) -> --
D51: 8 | E51: =VLOOKUP($E$41,Panel_values!$A$3:$L$8,9) -> -- | H51: Mask PeriBoard4 | I51: =IF(E41=5,1,0) -> 0 | J51: (Feauters on Peri2)
D52: 9 | E52: =VLOOKUP($E$41,Panel_values!$A$3:$L$8,10) -> -- | H52: Mask PeriBoard2+4 | I52: =IF(OR(E41=1,E41=2,E41=5),1,0) -> 1 | J52: (Feauters on Peri2 and Peri4)
D53: 10 | E53: =VLOOKUP($E$41,Panel_values!$A$3:$L$8,11) -> --
D54: 11 | E54: =VLOOKUP($E$41,Panel_values!$A$3:$L$8,12) -> --
E56: 1 | G56: (Panel-variant, # of coloum in tables on sheet "Panel_values")
B58: Panel selection
B61: Panel characteristics:
B62: Panel type: | C62: =Panel_comp!B109 -> FC361-ZZ
B63: =CONCATENATE("Variant: ",VLOOKUP($E$41,Panel_values!A22:L27,_xlfn.SINGLE($E$56)+1,FALSE)) -> Variant: International
B64: =CONCATENATE("Order Number: ",VLOOKUP($E$41,Panel_values!A13:L18,_xlfn.SINGLE($E$56)+1,FALSE)) -> Order Number: S54433-C112-A1
B65: C-NET: | D65: =Panel_comp!C110 -> 1 | E65: =Panel_comp!D110 -> loops
B66: Card cage type: | C66: =Panel_comp!B111 -> -- | D66: =Panel_comp!C111 ->  | E66: =Panel_comp!D111 -> 
B67: Housing type: | C67: =Panel_comp!C173 -> Compact
B68: Supply type: | C68: =Panel_comp!B182 -> FP2001-A1 | D68: =Panel_comp!C182 -> 70 | E68: W
B69: Max. fitting batteries: | C69: =Panel_comp!B174 -> FA2004-A1 | D69: =Panel_comp!C174 -> 12 | E69: Ah
B70: Max. fitting power supply: | C70: =Panel_comp!B185 -> FP2001-A1 | D70: =Panel_comp!C185 -> 70 | E70: W
A77: Field devices
B82: =Panel_comp!A14 -> Max. Total Current of All Sounders | F82: =Panel_comp!C14 -> 0.500 | G82: =Panel_comp!D14 -> A | H82: =Panel_comp!E14 -> (@ 24V)
B83: =Panel_comp!A15 -> Max. Current per Sounder Line | F83: =Panel_comp!C15 -> 0.500 | G83: =Panel_comp!D15 -> A | H83: =Panel_comp!E15 -> (@ 24V)
B84: =Panel_comp!A16 -> Max. Current of Auxiliary Power | F84: =Panel_comp!C16 -> 0.200 | G84: =Panel_comp!D16 -> A | H84: =Panel_comp!E16 -> (@ 24V)
B85: =Panel_comp!A17 -> Max. Current per Open Collector | F85: =Panel_comp!C17 -> 0.100 | G85: =Panel_comp!D17 -> A | H85: =Panel_comp!E17 -> (@ 24V)
B86: =Panel_comp!A18 -> Max. RSxxx Modules | F86: =Panel_comp!C18 -> 1 | G86: =Panel_comp!D18 -> pcs. | H86: =Panel_comp!E18 -> 0
B88: C-NET module2 | F88: Quiescent current | H88: Alarm current | J88: Remarks
B89: Current consumption (at panel by 24V) | F89: ='C-NET_Module2'!C548 -> 0.039 | G89: A | H89: ='C-NET_Module2'!C538 -> 0.039 | I89: A | J89: Values from "C-NET_Module2"
B91: C-NET Module3 | F91: =F$88 -> Quiescent current | H91: =H$88 -> Alarm current | J91: =J$88 -> Remarks
B92: Current consumption (at panel by 24V) | F92: 0.039 | G92: A | H92: 0.039 | I92: A | J92: Values from "C-NET_Module3"
A97: Outputs of main board
B99: Sounder lines | H99: =H$88 -> Alarm current | J99: =J$88 -> Remarks
B100: Sounder line 1 (SOUND1) | H100: 0.000 | I100: A | J100: Load of each sounder line shall not be greater than 0.5 A. Total sounder load shall not be greater than 0.5 A.
B101: Sounder line 2 (SOUND2) | H101: 0.000 | I101: A
B103: Alarm & Fault Outputs | F103: =F$88 -> Quiescent current | H103: =H$88 -> Alarm current | J103: =J$88 -> Remarks
B104: Load on "Output Alarm supervised" (AL_OUT) | J104: ·
B105: Load on "Output Fault supervised" (FAU_OUT)
B107: Auxiliary power | F107: =F$88 -> Quiescent current | H107: =H$88 -> Alarm current | J107: Remarks
B108: Total load of auxiliary power | F108: 0.000 | G108: A | H108: 0.000 | I108: A | J108: Total load of auxiliary power shall not be greater than 0.2 A.
B109: Load on "Configurable I/Os" (I/Ox) | F109: 0.000 | G109: A | H109: 0.000 | I109: A
B110: Load for external dialer | F110: 0.000 | G110: A | H110: 0.000 | I110: A
H113: 0.000
F115: =F$88 -> Quiescent current | H115: =H$88 -> Alarm current
B123: Input Checks Sounder Line 1 | D123: =IF(OR(H$100>F$83,AND(H$100>0, H$100+H$101>F$82)),0,1) -> 1
B124: Input Checks Sounder Line 2 | D124: =IF(OR(H$101>F$83,AND(H$101>0, H$100+H$101>F$82)),0,1) -> 1
B125: Input Checks Alarm & Fault Outputs | D125: =IF(OR($E$41=5,AND(F104<=F85,H104<=F85,F105<=F85,H105<=F85)),1,0) -> 1
B126: Input Checks Ext. Supply Output 1 | D126: =IF(OR($E$41=5,AND(F126<=F84,H126<=F84)),1,0) -> 1 | F126: =SUM(F108:F113) -> 0.000 | G126: A | H126: =SUM(H108:H113) -> 0.000 | I126: A
B127: Input Checks Ext. Supply Output 2 | D127: =IF(OR($E$41=1,$E$41=5,AND(F127<=F84,H127<=F84)),1,0) -> 1 | F127: =SUM(F116:F121) -> 0.000 | G127: A | H127: =SUM(H116:H121) -> 0.000 | I127: A
A129: Options
B131: Networking | D131: Quantity | F131: Quiescent power | H131: Alarm power | J131: =J$88 -> Remarks
E132: pcs | F132: =Panel_comp!L74+Panel_comp!L75 -> 0.00 | G132: W | H132: =Panel_comp!M74+Panel_comp!M75 -> 0.00 | I132: W
E133: pcs | F133: =Panel_comp!L76 -> 0.00 | G133: W | H133: =Panel_comp!M76 -> 0.00 | I133: W
E134: pcs | F134: =Panel_comp!L77 -> 0.00 | G134: W | H134: =Panel_comp!M77 -> 0.00 | I134: W
B136: Communication | D136: Option | F136: =F$131 -> Quiescent power | H136: =H$131 -> Alarm power | J136: =J$88 -> Remarks
B137: Permanent Ethernet connection | D137: NO | F137: =Panel_comp!L80 -> 0.00 | G137: W | H137: =Panel_comp!M80 -> 0.00 | I137: W | J137: Only if used in the operation mode in the panel.
B138: RS module (isolated) | C138: =VLOOKUP(D138,Panel_comp!A81:B83,2) -> - | D138: No module | F138: =VLOOKUP(D138,Panel_comp!A81:M83,12) -> 0.00 | G138: W | H138: =VLOOKUP(D138,Panel_comp!A81:M83,13) -> 0.00 | I138: W
B141: Printer | D141: =D131 -> Quantity | F141: =F$88 -> Quiescent current | H141: =H$88 -> Alarm current | J141: =J$88 -> Remarks
D142: 0 | E142: pcs | F142: 0.050 | G142: A | H142: 0.060 | I142: A | J142: If used: current= 50…100mA, depending on printing frequency.
J143: 1 RS232 Modul required additionaly
B145: Fire department periphery module | D145: =D131 -> Quantity | F145: =F$88 -> Quiescent current | H145: =H$88 -> Alarm current | J145: =J$88 -> Remarks
B146: Fire department periphery module | D146: 0 | E146: pcs | F146: =Panel_comp!J88 -> 0.000 | G146: A | H146: =Panel_comp!K88 -> 0.000 | I146: A
B147: FBF | F147: 0.000 | G147: A | H147: 0.000 | I147: A
B148: UeE | F148: 0.000 | G148: A | H148: 0.000 | I148: A
B149: FSD | F149: 0.000 | G149: A | H149: 0.000 | I149: A
B150: Kennleuchte | F150: 0.000 | G150: A | H150: 0.000 | I150: A
B151: FSE | F151: 0.000 | G151: A | H151: 0.000 | I151: A
B152: FAT | F152: 0.000 | G152: A | H152: 0.000 | I152: A
B153: OeA | F153: 0.000 | G153: A | H153: 0.000 | I153: A
B155: PMI-options | D155: Option | F155: =F$131 -> Quiescent power | H155: =H$131 -> Alarm power | J155: =J$88 -> Remarks
B156: =D156 -> No module | C156: =VLOOKUP(D156,Panel_comp!A97:B99,2,0) -> - | D156: No module | F156: =VLOOKUP(D156,Panel_comp!A97:M99,12,0) -> 0.00 | G156: W | H156: =VLOOKUP(D156,Panel_comp!A97:M99,13,0) -> 0.00 | I156: W | J156: =VLOOKUP(D156,Panel_comp!A97:O99,15,0) -> -
B158: =Panel_comp!A100 -> Output card (4M) | D158: Option | F158: =F136 -> Quiescent power | H158: =H136 -> Alarm power | J158: =J136 -> Remarks
B159: =Panel_comp!A101 -> Output card (4M) | C159: =IF(D159="YES",Panel_comp!B101,"-") -> - | D159: NO | F159: =Panel_comp!L101 -> 0.00 | G159: W | H159: =Panel_comp!M101 -> 0.00 | I159: W | J159: Whether Output card (4M) equipped or not
B160: Power supply of output card (4M) | D160: Internal | J160: Output card (4M) powered by internal or external power supply
B161: Outputs of output card (4M) | D161: Internal | F161: =F136 -> Quiescent power | H161: =H136 -> Alarm power | J161: Remarks
B162: Output 1 | D162: RT-Fault | F162: 0.000 | G162: A | H162: 0.000 | I162: A | J162: Each output load shall not be greater than 1A. Total load of 4 outputs shall not be greater than 2A.
B163: Output 2 | D163: RT-Fire | F163: 0.000 | G163: A | H163: 0.000 | I163: A
B164: Output 3 | D164: Fire Control | F164: 0.000 | G164: A | H164: 0.000 | I164: A
B165: Output 4 | D165: Sounder Line | F165: 0.000 | G165: A | H165: 0.000 | I165: A
B170: Max. Current of Total Outputs - Internal power | F170: 2 | G170: A | H170: 2 | I170: A
B171: Abbreviations | F171: =Panel_comp!C21 -> 1 | G171: A | H171: =Panel_comp!C21 -> 1 | I171: A
B174: Output Card | D174: =VLOOKUP(D159,B175:D176,3,FALSE) -> 0 | F174: =Panel_comp!L101 -> 0.00 | G174: W | H174: =Panel_comp!M101 -> 0.00 | I174: W
B175: NO | D175: 0
B176: YES | D176: 1
B179: Power supply of Output Card | D179: =VLOOKUP(D160,B180:D181,3,FALSE) -> 1
B180: Internal | D180: 1
B181: External | D181: 0
B184: Output setting
B185: Fire Control
B186: RT-Fault
B187: RT-Fire
B188: Sounder Line
B191: Input Checks Output Card | D191: =IF(OR(D174=0, D179=0), 1, IF(AND(Panel_comp!I101=1, D192, D193, D194, D195), 1, 0)) -> 1 | F191: =SUM(F162:F165) -> 0.000 | H191: =SUM(H162:H165) -> 0.000
B192: Input Checks Output 1 | D192: =F192*H192 -> 1 | F192: =IF(OR(F162>F$171, F$191+H$191>F$170, AND(D162<>"RT-Fault",F162>0)), 0, 1) -> 1 | H192: =IF(OR(H162>H$171, F$191+H$191>H$170, AND(D162="RT-Fault",H162>0)), 0, 1) -> 1
B193: Input Checks Output 2 | D193: =F193*H193 -> 1 | F193: =IF(OR(F163>F$171, F$191+H$191>F$170, AND(D163<>"RT-Fault",F163>0)), 0, 1) -> 1 | H193: =IF(OR(H163>H$171, F$191+H$191>H$170, AND(D163="RT-Fault",H163>0)), 0, 1) -> 1
B194: Input Checks Output 3 | D194: =F194*H194 -> 1 | F194: 1 | H194: 1
B195: Input Checks Output 4 | D195: =F195*H195 -> 1 | F195: 1 | H195: 1
B199: RT-Fault is triggered by any fault | D199: =VLOOKUP(D167, B200:D201, 3, FALSE) -> 
B200: YES | D200: 1
B201: NO | D201: 0
B202: Detached-Options (supply from FS720 station) | D202: =D131 -> Quantity | F202: =F$131 -> Quiescent power | H202: =H$131 -> Alarm power | J202: =J$88 -> Remarks
B203: Remote EVAC 20-zone (FCM2008-N1, 2xFTI2002-N1) | D203: 0 | E203: pcs | F203: 0.00 | G203: W | H203: 0.00 | I203: W | J203: One RS485 Modul required additionaly
B204: Mimic display driver EVAC 10-zone | C204: FT2003-N1 | D204: 0 | E204: pcs | F204: 0.00 | G204: W | H204: 0.00 | I204: W | J204: One RS485 Modul required additionaly
B207: Input Checks SAFEDLINK | D207: =IF(D132<=2,1,0) -> 1
B208: Input Checks Ethernet | D208: =IF(D137<>"",1,0) -> 1
B209: Input Checks RS Modules | D209: =IF(D138<>"",1,0) -> 1
B210: Input Checks Printer | D210: =IF(D142=1,IF(AND(F142>=G210,F142<=I210,H142>=G210,H142<=I210),1,0),1) -> 1 | F210: Min. I: | G210: 0.05 | H210: Max. I: | I210: 0.1
B211: Input Checks VDS Module | D211: =IF(D146<=1,1,0) -> 1
B212: Input Checks LED indicators | D212: =IF(I212<=G212,1,0) -> 1 | F212: Max. I2C: | G212: =Panel_comp!C19 -> 16 | H212: Act. I2C: | I212: =Panel_comp!B141 -> 4
B213: Input Checks EVAC 20-zone add-on | D213: =IF(I212<=G212,1,0) -> 1
A216: Panel
B218: Own consumption | F218: =F$131 -> Quiescent power | H218: =H$131 -> Alarm power | J218: =J$88 -> Remarks
B219: Panel type | C219: =Panel_comp!B109 -> FC361-ZZ | F219: =Panel_comp!L149 -> 2.24 | G219: W | H219: =Panel_comp!M149 -> 2.72 | I219: W
A221: Supply & battery check
B223: Battery required standby-time | F223: =F$131 -> Quiescent power | H223: =H$131 -> Alarm power | J223: =J$88 -> Remarks
B224: Required stand-by time | D224: 24 | E224: h
B225: Required alarm-time (after standby) | D225: 0.5 | E225: h
B227: Power calculation supply1 | F227: =F$131 -> Quiescent power | H227: alarm power | J227: =J$88 -> Remarks
B228: Field devices | F228: =Panel_comp!L145 -> 0.94 | G228: W | H228: =Panel_comp!M145 -> 0.94 | I228: W
B229: Outputs of main board | F229: =Panel_comp!L147 -> 0.00 | G229: W | H229: =Panel_comp!M147 -> 0.00 | I229: W
B230: Options | F230: =Panel_comp!L148 -> 0.00 | G230: W | H230: =Panel_comp!M148 -> 0.00 | I230: W
B231: Panel | F231: =F219 -> 2.24 | G231: W | H231: =H219 -> 2.72 | I231: W
B232: Total | F232: =Panel_comp!L152 -> 3.17 | G232: W | H232: =Panel_comp!M152 -> 3.65 | I232: W
B235: Battery calculation | J235: =J$88 -> Remarks
B236: Required batteries | F236: =Panel_comp!C171 -> 4.1 | G236: Ah
B237: Available batteries | C237: =Panel_comp!B172 -> FA2003-A1 | F237: =Panel_comp!C172 -> 7 | G237: Ah | J237: =VLOOKUP(Panel_comp!C175,Panel_comp!K220:L223,2,TRUE) -> O.K.
B240: Supply calculation | J240: =J$88 -> Remarks
B241: Maximal current of power supply (incl. battery current for available type) | F241: =Panel_comp!C180 -> 0.50 | G241: A | J241: =IF($D$246=0,"Use document 008843 to calculate power supply","") -> 
B242: Required supply | F242: =Panel_comp!C181 -> 11.9 | G242: W
B243: Integrated supply | C243: =Panel_comp!B182 -> FP2001-A1 | F243: =Panel_comp!C182 -> 70 | G243: W | J243: =IF(D248=0,"Use additional supply","") -> 
B244: Available supply | F244: =Panel_comp!C183 -> 70 | G244: W | J244: =VLOOKUP($I$249,Panel_comp!$K$233:$L$236,2,TRUE) -> O.K.
B246: Battery check (required batt < available batt) | D246: =IF(F237="no",0,IF(F236<=F237,1,0)) -> 1 | E246: 1=ok, | F246: 0-> bigger batt | H246: Batt. C. Code: | I246: =2*D246+D247 -> 3
B247: Battery check (required batt fitting in housing) | D247: =IF(F236<=$D$69,1,0) -> 1 | E247: 1=ok, | F247: 0-> bigger hous.
B248: Supply check (required supp < integrated supp) | D248: =IF(F242<=F243,1,0) -> 1 | E248: 1=ok, | F248: 0-> add. Suppl.
B249: Supply check (required supp < available supp) | D249: =IF(F242<=F244,1,0) -> 1 | E249: 1=ok, | F249: 0-> bigger supp | H249: Supp. C. Code: | I249: =2*D249+D250 -> 3
B250: Supply check (required supp fitting in housing) | D250: =IF(F242<=$D$70,1,0) -> 1 | E250: 1=ok, | F250: 0-> bigger hous.
B252: Battery check (required batt < available batt) | D252: =IF(#REF!="no",0,IF(#REF!<=#REF!,1,0)) ->  | F252: 0-> bigger batt
B253: Supply check (required supp < integrated supp) | D253: =IF(#REF!<=#REF!,1,0) ->  | F253: 0-> add. Suppl.
J254: =IF(J255="KF","Need refresh calculation on C-Net_Module2",IF(J255="JC","Configuration ok","Configuration false")) -> Need refresh calculation on C-Net_Module2
J255: =IF('C-NET_Module2'!C576,"KF",IF(AND(D123,D124,D126,D127,D125,D191,D207,D208,D209,D210,D211,D212,D213,D246,D247,D248,D249,D250,'C-NET_Module2'!C578,'C-NET_Module2'!C579),"JC","LD")) -> KF
J263: =J254 -> Need refresh calculation on C-Net_Module2
C395: 0
C583: TRUE

Sheet C-NET_Module2
B1: Planning of C-NET detector lines
B3: Purpose:
B4: With the project planning of the detector line the load of the line card is verified. This results in the definite:
B5: - number and type of devices per detector line
B6: - load of the panel in idle and alarm state
B10: Procedure:
B12: 1.) Choose correct Alarm indicator extras (per loop/stub)
B13: 2.) Choose Device population topology (loop or stub)
B14: 3.) Enter the number of devices per loop/stub in the table
B15: 4.) Input cable characteristics and cable length
B16: 5.) Choose calculation characteristics
B17: --> Worst case: All devices are placed at end of line for calculation
B18: --> Equally: All devices are distributed equally over cable length. Possibility to add extra start and end cable length
B19: 6.) Add start and end cable length in case of equal distribution
B20: 7.) Check that no input field is orange
B21: 8.) Click 'Press Button to refresh calculation'
B22: 9.) All data are now complete. The program calculates the configuration
B23: --> If all analyses are "green" , configuration is "Configuration valid"
B24: --> If some analysis field are red and "Configuration not valid" is red, change parameters to get a valid configuration
B32: Please consider:
B33: If a control is connected to an external AI, this must be entered at Ext. AI-Control rows
B35: yellow fields - Must be filled in by the user
B36: orange fields - Shows an input data error. These fields must be filled in by the user
B37: red fields - Calculated value, configuration not valid
B38: clear fields - Calculated value, additional information for the user
A46: Input number of devices
B48: Help values | U48: Abbreviations
U49: FDnetAK: FDnet Adressindex (Adresskennzahl), Number of by the device used bus-addresses (including sub-addresses)
C50: Loop / Stub | G50: Loop / Stub | K50: Loop / Stub | O50: Loop / Stub | U50: FDnetRK: FDnet Ruhestromkennzahl (Quietindex); average current of the device in idle state (in load factors). Necessary to calculate the emergency power
C51: Loop | G51: Loop | K51: Loop | O51: Loop | U51: FDnetMK: FDnet Melderkennzahl (Deviceindex); maximal average current of the device, normally in alarm state (in load factors), without internal or external AI
U52: FDnetTK: FDnet Trennerkennzahl (Isolator index); separator connection factor: devices with separator = 1, without separator = 0
C53: Stub1_1 | E53: Stub1_2 | G53: Stub2_1 | I53: Stub2_2 | K53: Stub3_1 | M53: Stub3_2 | O53: Stub4_1 | Q53: Stub4_2 | U53: Internal AI: Device has an internal AI
C54: TRUE | E54: FALSE | G54: FALSE | I54: FALSE | K54: FALSE | M54: FALSE | O54: FALSE | Q54: FALSE | U54: Constant Current: Device consumes current independent from device voltage
U55: Constant Power: Device consumes current regulated by device voltage
B56: Selection Card (Normal, PowerBus) | U56: Low ohmic FET: Device has an low ohmic isolator FET
B57: 1 | C57: Selection card | U57: 16V min. device voltage: Device need at min. 16V
B61: Alarm indicator extras
B62: Alarm Indicator extras
B63: None | C63: Alarm Indicator extras
B64: 0.005 | C64: Alarm Indicator Current [A]
B65: 0.0004 | C65: Alarm Indicator Current Ex-Line [A]
B68: Choose max. Line current
B69: Choose Current
B70: 0.5 | C70: Chosen card current
B74: ExtensionView
B75: FALSE
B76: Ext. changable
B77: FALSE
B78: Loop2 visible
B79: FALSE
B80: Device Population | C80: TRUE | U80: FDnetRK | X80: FDnetMK
U81: Total | V81: Constant | X81: Total | Y81: Constant
C82: Loop1 | E82: Stub1_2 | G82: Stub2_1 | I82: Stub2_2 | K82: Loop3 | M82: Stub3_2 | O82: Loop4 | Q82: Stub4_2 | V82: Current | W82: Power | Y82: Current | Z82: Power | AA82: FDnetTK | AB82: FDnetAK | AC82: Internal AI | AD82: Low ohmic FET | AE82: 16V min. device voltage | AF82: Remarks
B83: Point detectors | V83: Constant Current | Y83: constant power | AF83: Point detectors
B84: OP720 - Smoke detector | C84: 0 | D84: pcs. | E84: 0 | F84: pcs. | G84: 0 | H84: pcs. | I84: 0 | J84: pcs. | K84: 0 | L84: pcs. | M84: 0 | N84: pcs. | O84: 0 | P84: pcs. | Q84: 0 | R84: pcs. | U84: =V84+W84 -> 1 | V84: 1 | W84: 0 | X84: =Y84+Z84 -> 1 | Y84: 1 | Z84: 0 | AA84: 1 | AB84: 1 | AC84: 1 | AD84: 0 | AE84: 0 | AF84: =B84 -> OP720 - Smoke detector
B85: HI722 - Heat detector | C85: 0 | D85: pcs. | E85: 0 | F85: pcs. | G85: 0 | H85: pcs. | I85: 0 | J85: pcs. | K85: 0 | L85: pcs. | M85: 0 | N85: pcs. | O85: 0 | P85: pcs. | Q85: 0 | R85: pcs. | U85: =V85+W85 -> 1 | V85: 1 | W85: 0 | X85: =Y85+Z85 -> 1 | Y85: 1 | Z85: 0 | AA85: 1 | AB85: 1 | AC85: 1 | AD85: 0 | AE85: 0 | AF85: HI722 - Heat detector
B86: HI720 - Heat detector | C86: 0 | D86: pcs. | E86: 0 | F86: pcs. | G86: 0 | H86: pcs. | I86: 0 | J86: pcs. | K86: 0 | L86: pcs. | M86: 0 | N86: pcs. | O86: 0 | P86: pcs. | Q86: 0 | R86: pcs. | U86: 1 | V86: 1 | W86: 0 | X86: 1 | Y86: 1 | Z86: 0 | AA86: 1 | AB86: 1 | AC86: 1 | AD86: 0 | AE86: 0 | AF86: HI720 - Heat detector
B87: OH720 - Multi Sensor detector | C87: 0 | D87: pcs. | E87: 0 | F87: pcs. | G87: 0 | H87: pcs. | I87: 0 | J87: pcs. | K87: 0 | L87: pcs. | M87: 0 | N87: pcs. | O87: 0 | P87: pcs. | Q87: 0 | R87: pcs. | U87: 1 | V87: 1 | W87: 0 | X87: 1 | Y87: 1 | Z87: 0 | AA87: 1 | AB87: 1 | AC87: 1 | AD87: 0 | AE87: 0 | AF87: OH720 - Multi Sensor detector
B88: OOH740 - Multi Sensor detector | C88: 0 | D88: pcs. | E88: 0 | F88: pcs. | G88: 0 | H88: pcs. | I88: 0 | J88: pcs. | K88: 0 | L88: pcs. | M88: 0 | N88: pcs. | O88: 0 | P88: pcs. | Q88: 0 | R88: pcs. | U88: 1 | V88: 1 | W88: 0 | X88: 1 | Y88: 1 | Z88: 0 | AA88: 1 | AB88: 1 | AC88: 1 | AD88: 0 | AE88: 0 | AF88: OOH740 - Multi Sensor detector
B89: OP360 - Smoke detector | C89: 0 | D89: pcs. | E89: 0 | F89: pcs. | G89: 0 | H89: pcs. | I89: 0 | J89: pcs. | K89: 0 | L89: pcs. | M89: 0 | N89: pcs. | O89: 0 | P89: pcs. | Q89: 0 | R89: pcs. | U89: 1 | V89: 1 | W89: 0 | X89: 1 | Y89: 1 | Z89: 0 | AA89: 1 | AB89: 1 | AC89: 1 | AD89: 0 | AE89: 0 | AF89: OP360 - Smoke detector
B90: OH360 - Multi-sensor smoke detector | C90: 0 | D90: pcs. | E90: 0 | F90: pcs. | G90: 0 | H90: pcs. | I90: 0 | J90: pcs. | K90: 0 | L90: pcs. | M90: 0 | N90: pcs. | O90: 0 | P90: pcs. | Q90: 0 | R90: pcs. | U90: 1 | V90: 1 | W90: 0 | X90: 1 | Y90: 1 | Z90: 0 | AA90: 1 | AB90: 1 | AC90: 1 | AD90: 0 | AE90: 0 | AF90: OH360 - Multi-sensor smoke detector
B91: HI360 - Heat detector (RoR) | C91: 0 | D91: pcs. | E91: 0 | F91: pcs. | G91: 0 | H91: pcs. | I91: 0 | J91: pcs. | K91: 0 | L91: pcs. | M91: 0 | N91: pcs. | O91: 0 | P91: pcs. | Q91: 0 | R91: pcs. | U91: 1 | V91: 1 | W91: 0 | X91: 1 | Y91: 1 | Z91: 0 | AA91: 1 | AB91: 1 | AC91: 1 | AD91: 0 | AE91: 0 | AF91: HI360 - Heat detector (RoR)
U92: 0 | X92: 0 | AF92: 0
U93: 0 | X93: 0 | AF93: 0
U94: 0 | X94: 0 | AF94: 0
U95: 0 | X95: 0 | AF95: 0
U96: 0 | X96: 0 | AF96: 0
U97: 0 | X97: 0 | AF97: 0
U98: 0 | X98: 0 | AF98: 0
U99: 0 | X99: 0 | AF99: 0
B100: Special detectors | AF100: Special detectors
B101: FDF241-9 - Infrared flame detector | C101: 0 | D101: pcs. | E101: 0 | F101: pcs. | G101: 0 | H101: pcs. | I101: 0 | J101: pcs. | K101: 0 | L101: pcs. | M101: 0 | N101: pcs. | O101: 0 | P101: pcs. | Q101: 0 | R101: pcs. | U101: 3 | V101: 3 | W101: 0 | X101: 3 | Y101: 3 | Z101: 0 | AA101: 1 | AB101: 1 | AC101: 1 | AD101: 0 | AE101: 0 | AF101: FDF241-9 - Infrared flame detector
B102: FDL241-9 - Linear smoke detector | C102: 0 | D102: pcs. | E102: 0 | F102: pcs. | G102: 0 | H102: pcs. | I102: 0 | J102: pcs. | K102: 0 | L102: pcs. | M102: 0 | N102: pcs. | O102: 0 | P102: pcs. | Q102: 0 | R102: pcs. | U102: 4 | V102: 4 | W102: 0 | X102: 4 | Y102: 4 | Z102: 0 | AA102: 1 | AB102: 1 | AC102: 1 | AD102: 0 | AE102: 0 | AF102: FDL241-9 - Linear smoke detector
B103: OOHC740 - Neural Fire and CO detector | C103: 0 | D103: pcs. | E103: 0 | F103: pcs. | G103: 0 | H103: pcs. | I103: 0 | J103: pcs. | K103: 0 | L103: pcs. | M103: 0 | N103: pcs. | O103: 0 | P103: pcs. | Q103: 0 | R103: pcs. | U103: 2 | V103: 2 | W103: 0 | X103: 2 | Y103: 2 | Z103: 0 | AA103: 1 | AB103: 1 | AC103: 1 | AD103: 0 | AE103: 0 | AF103: OOHC740 - Neural Fire and CO detector
U104: 0 | X104: 0 | AF104: 0
U105: 0 | X105: 0 | AF105: 0
U106: 0 | X106: 0 | AF106: 0
U107: 0 | X107: 0 | AF107: 0
U108: 0 | X108: 0 | AF108: 0
U109: 0 | X109: 0 | AF109: 0
U110: 0 | X110: 0 | AF110: 0
U111: 0 | X111: 0 | AF111: 0
U112: 0 | X112: 0 | AF112: 0
U113: 0 | X113: 0 | AF113: 0
U114: 0 | X114: 0 | AF114: 0
B115: Manual call points | AF115: Manual call points
B116: FDM22x - Manual call points | C116: 0 | D116: pcs. | E116: 0 | F116: pcs. | G116: 0 | H116: pcs. | I116: 0 | J116: pcs. | K116: 0 | L116: pcs. | M116: 0 | N116: pcs. | O116: 0 | P116: pcs. | Q116: 0 | R116: pcs. | U116: 1 | V116: 1 | W116: 0 | X116: 1 | Y116: 1 | Z116: 0 | AA116: 1 | AB116: 1 | AC116: 1 | AD116: 0 | AE116: 0 | AF116: FDM22x - Manual call points
B117: FDM231 - Manual call point | C117: 0 | D117: pcs. | E117: 0 | F117: pcs. | G117: 0 | H117: pcs. | I117: 0 | J117: pcs. | K117: 0 | L117: pcs. | M117: 0 | N117: pcs. | O117: 0 | P117: pcs. | Q117: 0 | R117: pcs. | U117: 1 | V117: 1 | W117: 0 | X117: 1 | Y117: 1 | Z117: 0 | AA117: 1 | AB117: 1 | AC117: 1 | AD117: 0 | AE117: 0 | AF117: FDM231 - Manual call point
B118: FDM365-RP - Resettable MCP | C118: 0 | D118: pcs. | E118: 0 | F118: pcs. | G118: 0 | H118: pcs. | I118: 0 | J118: pcs. | K118: 0 | L118: pcs. | M118: 0 | N118: pcs. | O118: 0 | P118: pcs. | Q118: 0 | R118: pcs. | U118: 1 | V118: 1 | W118: 0 | X118: 1 | Y118: 1 | Z118: 0 | AA118: 1 | AB118: 1 | AC118: 1 | AD118: 0 | AE118: 0 | AF118: FDM365-RP - Resettable MCP
U119: 0 | X119: 0 | AF119: 0
U120: 0 | X120: 0 | AF120: 0
U121: 0 | X121: 0 | AF121: 0
U122: 0 | X122: 0 | AF122: 0
U123: 0 | X123: 0 | AF123: 0
U124: 0 | X124: 0 | AF124: 0
U125: 0 | X125: 0 | AF125: 0
U126: 0 | X126: 0 | AF126: 0
B127: Line modules | AF127: Line modules
B128: FDCI221 - Input module (1I) | C128: 0 | D128: pcs. | E128: 0 | F128: pcs. | G128: 0 | H128: pcs. | I128: 0 | J128: pcs. | K128: 0 | L128: pcs. | M128: 0 | N128: pcs. | O128: 0 | P128: pcs. | Q128: 0 | R128: pcs. | U128: 2 | V128: 2 | W128: 0 | X128: 2 | Y128: 2 | Z128: 0 | AA128: 1 | AB128: 1 | AC128: 0 | AD128: 0 | AE128: 0 | AF128: FDCI221 - Input module (1I)
B129: FDCI222 - Input module (4I) | C129: 0 | D129: pcs. | E129: 0 | F129: pcs. | G129: 0 | H129: pcs. | I129: 0 | J129: pcs. | K129: 0 | L129: pcs. | M129: 0 | N129: pcs. | O129: 0 | P129: pcs. | Q129: 0 | R129: pcs. | U129: 2 | V129: 2 | W129: 0 | X129: 2 | Y129: 2 | Z129: 0 | AA129: 1 | AB129: 1 | AC129: 0 | AD129: 0 | AE129: 0 | AF129: FDCI222 - Input module (4I)
B130: FDCIO221 - In/Output module (1I&1O) | C130: 0 | D130: pcs. | E130: 0 | F130: pcs. | G130: 0 | H130: pcs. | I130: 0 | J130: pcs. | K130: 0 | L130: pcs. | M130: 0 | N130: pcs. | O130: 0 | P130: pcs. | Q130: 0 | R130: pcs. | U130: 2 | V130: 2 | W130: 0 | X130: 2 | Y130: 2 | Z130: 0 | AA130: 1 | AB130: 1 | AC130: 0 | AD130: 0 | AE130: 0 | AF130: FDCIO221 - In/Output module (1I&1O)
B131: FDCIO222 - In/Output module (4I&4O) | C131: 0 | D131: pcs. | E131: 0 | F131: pcs. | G131: 0 | H131: pcs. | I131: 0 | J131: pcs. | K131: 0 | L131: pcs. | M131: 0 | N131: pcs. | O131: 0 | P131: pcs. | Q131: 0 | R131: pcs. | U131: 3 | V131: 3 | W131: 0 | X131: 3 | Y131: 3 | Z131: 0 | AA131: 1 | AB131: 1 | AC131: 0 | AD131: 0 | AE131: 0 | AF131: FDCIO222 - In/Output module (4I&4O)
B132: FDCIO224 - In/Output module (4I&4O) | C132: 0 | D132: pcs. | E132: 0 | F132: pcs. | G132: 0 | H132: pcs. | I132: 0 | J132: pcs. | K132: 0 | L132: pcs. | M132: 0 | N132: pcs. | O132: 0 | P132: pcs. | Q132: 0 | R132: pcs. | U132: 3 | V132: 3 | W132: 0 | X132: 3 | Y132: 3 | Z132: 0 | AA132: 1 | AB132: 1 | AC132: 0 | AD132: 0 | AE132: 0 | AF132: FDCIO224 - In/Output module (4I&4O)
B133: FDCL221 - Line isolator | C133: 0 | D133: pcs. | E133: 0 | F133: pcs. | G133: 0 | H133: pcs. | I133: 0 | J133: pcs. | K133: 0 | L133: pcs. | M133: 0 | N133: pcs. | O133: 0 | P133: pcs. | Q133: 0 | R133: pcs. | U133: 1 | V133: 1 | W133: 0 | X133: 1 | Y133: 1 | Z133: 0 | AA133: 1 | AB133: 1 | AC133: 0 | AD133: 0 | AE133: 0 | AF133: FDCL221 - Line isolator
B134: FDCL221-M - Multi line isolator | C134: 0 | D134: pcs. | E134: 0 | F134: pcs. | G134: 0 | H134: pcs. | I134: 0 | J134: pcs. | K134: 0 | L134: pcs. | M134: 0 | N134: pcs. | O134: 0 | P134: pcs. | Q134: 0 | R134: pcs. | U134: 9 | V134: 9 | W134: 0 | X134: 9 | Y134: 9 | Z134: 0 | AA134: 9 | AB134: 9 | AC134: 0 | AD134: 0 | AE134: 0 | AF134: FDCL221-M - Multi line isolator
B135: FDCI723 - Zone module, ext. powered (1 collective line) | C135: 0 | D135: pcs. | E135: 0 | F135: pcs. | G135: 0 | H135: pcs. | I135: 0 | J135: pcs. | K135: 0 | L135: pcs. | M135: 0 | N135: pcs. | O135: 0 | P135: pcs. | Q135: 0 | R135: pcs. | U135: 3 | V135: 3 | W135: 0 | X135: 3 | Y135: 3 | Z135: 0 | AA135: 1 | AB135: 1 | AC135: 0 | AD135: 0 | AE135: 0 | AF135: FDCI723 - Zone module, ext. powered (1 collective line)
B136: FDCI361 - Input module | C136: 0 | D136: pcs. | E136: 0 | F136: pcs. | G136: 0 | H136: pcs. | I136: 0 | J136: pcs. | K136: 0 | L136: pcs. | M136: 0 | N136: pcs. | O136: 0 | P136: pcs. | Q136: 0 | R136: pcs. | U136: 2 | V136: 2 | W136: 0 | X136: 2 | Y136: 2 | Z136: 0 | AA136: 1 | AB136: 1 | AC136: 0 | AD136: 0 | AE136: 0 | AF136: =B136 -> FDCI361 - Input module
B137: FDCIO361 - Input/Output module | C137: 0 | D137: pcs. | E137: 0 | F137: pcs. | G137: 0 | H137: pcs. | I137: 0 | J137: pcs. | K137: 0 | L137: pcs. | M137: 0 | N137: pcs. | O137: 0 | P137: pcs. | Q137: 0 | R137: pcs. | U137: 2 | V137: 2 | W137: 0 | X137: 2 | Y137: 2 | Z137: 0 | AA137: 1 | AB137: 1 | AC137: 0 | AD137: 0 | AE137: 0 | AF137: FDCIO361 - Input/Output module
AF138: 0
AF139: 0
AF140: 0
AF141: 0
AF142: 0
AF143: 0
AF144: 0
AF145: 0
B146: Radio devices | AF146: Radio devices
AF152: =B152 -> 0
AF153: 0
AF154: 0
AF155: 0
AF156: 0
AF157: 0
AF158: 0
AF159: 0
AF160: 0
AF161: 0
B162: Integrated modules | AF162: Integrated modules
AF165: 0
AF166: 0
AF167: 0
AF168: 0
AF169: 0
AF170: 0
AF171: 0
AF172: 0
AF173: 0
AF174: 0
B175: Alarm devices - Sound | AF175: Alarm devices - Sound
B176: FDS221-R, FDS221-W - Alarm sounder red or white housing, Volume High | C176: 0 | D176: pcs. | E176: 0 | F176: pcs. | G176: 0 | H176: pcs. | I176: 0 | J176: pcs. | K176: 0 | L176: pcs. | M176: 0 | N176: pcs. | O176: 0 | P176: pcs. | Q176: 0 | R176: pcs. | U176: =V176+W176 -> 1 | V176: 1 | W176: 0 | X176: =Y176+Z176 -> 15 | Y176: 15 | Z176: 0 | AA176: 1 | AB176: 1 | AC176: 0 | AD176: 0 | AE176: 0 | AF176: FDS221-R, FDS221-W - Alarm sounder red or white housing, Volume High
B177: FDS221-R, FDS221-W - Alarm sounder red or white housing, Volume Medium | C177: 0 | D177: pcs. | E177: 0 | F177: pcs. | G177: 0 | H177: pcs. | I177: 0 | J177: pcs. | K177: 0 | L177: pcs. | M177: 0 | N177: pcs. | O177: 0 | P177: pcs. | Q177: 0 | R177: pcs. | U177: 1 | V177: 1 | W177: 0 | X177: 10 | Y177: 10 | Z177: 0 | AA177: 1 | AB177: 1 | AC177: 0 | AD177: 0 | AE177: 0 | AF177: FDS221-R, FDS221-W - Alarm sounder red or white housing, Volume Medium
B178: FDS221-R, FDS221-W - Alarm sounder red or white housing, Volume Low | C178: 0 | D178: pcs. | E178: 0 | F178: pcs. | G178: 0 | H178: pcs. | I178: 0 | J178: pcs. | K178: 0 | L178: pcs. | M178: 0 | N178: pcs. | O178: 0 | P178: pcs. | Q178: 0 | R178: pcs. | U178: 1 | V178: 1 | W178: 0 | X178: 5 | Y178: 5 | Z178: 0 | AA178: 1 | AB178: 1 | AC178: 0 | AD178: 0 | AE178: 0 | AF178: FDS221-R, FDS221-W - Alarm sounder red or white housing, Volume Low
B179: DBS720 - Sounder base, Volume High | C179: 0 | D179: pcs. | E179: 0 | F179: pcs. | G179: 0 | H179: pcs. | I179: 0 | J179: pcs. | K179: 0 | L179: pcs. | M179: 0 | N179: pcs. | O179: 0 | P179: pcs. | Q179: 0 | R179: pcs. | U179: 0.5 | V179: 0.5 | W179: 0 | X179: 5 | Y179: 5 | Z179: 0 | AA179: 0 | AB179: 0 | AC179: 0 | AD179: 0 | AE179: 0 | AF179: DBS720 - Sounder base, Volume High
B180: DBS720 - Sounder base, Volume Medium | C180: 0 | D180: pcs. | E180: 0 | F180: pcs. | G180: 0 | H180: pcs. | I180: 0 | J180: pcs. | K180: 0 | L180: pcs. | M180: 0 | N180: pcs. | O180: 0 | P180: pcs. | Q180: 0 | R180: pcs. | U180: 0.5 | V180: 0.5 | W180: 0 | X180: 5 | Y180: 5 | Z180: 0 | AA180: 0 | AB180: 0 | AC180: 0 | AD180: 0 | AE180: 0 | AF180: DBS720 - Sounder base, Volume Medium
B181: DBS721 - Sounder interbase, Volume High | C181: 0 | D181: pcs. | E181: 0 | F181: pcs. | G181: 0 | H181: pcs. | I181: 0 | J181: pcs. | K181: 0 | L181: pcs. | M181: 0 | N181: pcs. | O181: 0 | P181: pcs. | Q181: 0 | R181: pcs. | U181: 1 | V181: 1 | W181: 0 | X181: 15 | Y181: 15 | Z181: 0 | AA181: 1 | AB181: 1 | AC181: 0 | AD181: 0 | AE181: 0 | AF181: DBS721 - Sounder interbase, Volume High
B182: DBS721 - Sounder interbase, Volume Medium | C182: 0 | D182: pcs. | E182: 0 | F182: pcs. | G182: 0 | H182: pcs. | I182: 0 | J182: pcs. | K182: 0 | L182: pcs. | M182: 0 | N182: pcs. | O182: 0 | P182: pcs. | Q182: 0 | R182: pcs. | U182: 1 | V182: 1 | W182: 0 | X182: 10 | Y182: 10 | Z182: 0 | AA182: 1 | AB182: 1 | AC182: 0 | AD182: 0 | AE182: 0 | AF182: DBS721 - Sounder interbase, Volume Medium
B183: DBS721 - Sounder interbase, Volume Low | C183: 0 | D183: pcs. | E183: 0 | F183: pcs. | G183: 0 | H183: pcs. | I183: 0 | J183: pcs. | K183: 0 | L183: pcs. | M183: 0 | N183: pcs. | O183: 0 | P183: pcs. | Q183: 0 | R183: pcs. | U183: 1 | V183: 1 | W183: 0 | X183: 5 | Y183: 5 | Z183: 0 | AA183: 1 | AB183: 1 | AC183: 0 | AD183: 0 | AE183: 0 | AF183: DBS721 - Sounder interbase, Volume Low
B184: FDS224-R, FDS224-W - Sounder red or white housing, Volume High | C184: 0 | D184: pcs. | E184: 0 | F184: pcs. | G184: 0 | H184: pcs. | I184: 0 | J184: pcs. | K184: 0 | L184: pcs. | M184: 0 | N184: pcs. | O184: 0 | P184: pcs. | Q184: 0 | R184: pcs. | U184: 1 | V184: 1 | W184: 0 | X184: 15 | Y184: 15 | Z184: 0 | AA184: 1 | AB184: 1 | AC184: 0 | AD184: 1 | AE184: 0 | AF184: FDS224-R, FDS224-W - Sounder red or white housing, Volume High
B185: FDS224-R, FDS224-W - Sounder red or white housing, Volume Medium | C185: 0 | D185: pcs. | E185: 0 | F185: pcs. | G185: 0 | H185: pcs. | I185: 0 | J185: pcs. | K185: 0 | L185: pcs. | M185: 0 | N185: pcs. | O185: 0 | P185: pcs. | Q185: 0 | R185: pcs. | U185: 1 | V185: 1 | W185: 0 | X185: 8 | Y185: 8 | Z185: 0 | AA185: 1 | AB185: 1 | AC185: 0 | AD185: 1 | AE185: 0 | AF185: FDS224-R, FDS224-W - Sounder red or white housing, Volume Medium
B186: FDS224-R, FDS224-W - Sounder red or white housing, Volume Low | C186: 0 | D186: pcs. | E186: 0 | F186: pcs. | G186: 0 | H186: pcs. | I186: 0 | J186: pcs. | K186: 0 | L186: pcs. | M186: 0 | N186: pcs. | O186: 0 | P186: pcs. | Q186: 0 | R186: pcs. | U186: 1 | V186: 1 | W186: 0 | X186: 6 | Y186: 6 | Z186: 0 | AA186: 1 | AB186: 1 | AC186: 0 | AD186: 1 | AE186: 0 | AF186: FDS224-R, FDS224-W - Sounder red or white housing, Volume Low
B187: FDS364-R, FDS364-W - Sounder red or white housing, Volume High | C187: 0 | D187: pcs. | E187: 0 | F187: pcs. | G187: 0 | H187: pcs. | I187: 0 | J187: pcs. | K187: 0 | L187: pcs. | M187: 0 | N187: pcs. | O187: 0 | P187: pcs. | Q187: 0 | R187: pcs. | U187: 1 | V187: 1 | W187: 0 | X187: 15 | Y187: 15 | Z187: 0 | AA187: 1 | AB187: 1 | AC187: 0 | AD187: 1 | AE187: 0 | AF187: FDS364-R, FDS364-W - Sounder red or white housing, Volume High
AF188: 0
AF189: 0
AF190: 0
AF191: 0
AF192: 0
AF193: 0
AF194: 0
AF195: 0
B196: Alarm devices - Sound and Voice | AF196: Alarm devices - Sound and Voice
B197: FDS225-R, FDS225-W - Voice sounder red or white housing, Volume High | C197: 0 | D197: pcs. | E197: 0 | F197: pcs. | G197: 0 | H197: pcs. | I197: 0 | J197: pcs. | K197: 0 | L197: pcs. | M197: 0 | N197: pcs. | O197: 0 | P197: pcs. | Q197: 0 | R197: pcs. | U197: =V197+W197 -> 1 | V197: 1 | W197: 0 | X197: =Y197+Z197 -> 18 | Y197: 18 | Z197: 0 | AA197: 1 | AB197: 1 | AC197: 0 | AD197: 1 | AE197: 0 | AF197: FDS225-R, FDS225-W - Voice sounder red or white housing, Volume High
B198: FDS225-R, FDS225-W - Voice sounder red or white housing, Volume Medium | C198: 0 | D198: pcs. | E198: 0 | F198: pcs. | G198: 0 | H198: pcs. | I198: 0 | J198: pcs. | K198: 0 | L198: pcs. | M198: 0 | N198: pcs. | O198: 0 | P198: pcs. | Q198: 0 | R198: pcs. | U198: 1 | V198: 1 | W198: 0 | X198: 13 | Y198: 13 | Z198: 0 | AA198: 1 | AB198: 1 | AC198: 0 | AD198: 1 | AE198: 0 | AF198: FDS225-R, FDS225-W - Voice sounder red or white housing, Volume Medium
B199: FDS225-R, FDS225-W - Voice sounder red or white housing, Volume Low | C199: 0 | D199: pcs. | E199: 0 | F199: pcs. | G199: 0 | H199: pcs. | I199: 0 | J199: pcs. | K199: 0 | L199: pcs. | M199: 0 | N199: pcs. | O199: 0 | P199: pcs. | Q199: 0 | R199: pcs. | U199: 1 | V199: 1 | W199: 0 | X199: 12 | Y199: 12 | Z199: 0 | AA199: 1 | AB199: 1 | AC199: 0 | AD199: 1 | AE199: 0 | AF199: FDS225-R, FDS225-W - Voice sounder red or white housing, Volume Low
B200: FDS226, FDS227 - Sounder used without beacon functionality, Volume High | C200: 0 | D200: pcs. | E200: 0 | F200: pcs. | G200: 0 | H200: pcs. | I200: 0 | J200: pcs. | K200: 0 | L200: pcs. | M200: 0 | N200: pcs. | O200: 0 | P200: pcs. | Q200: 0 | R200: pcs. | U200: 1.25 | V200: 1.25 | W200: 0 | X200: 18 | Y200: 18 | Z200: 0 | AA200: 1 | AB200: 1 | AC200: 0 | AD200: 1 | AE200: 0 | AF200: FDS226, FDS227 - Sounder used without beacon functionality, Volume High
B201: FDS226, FDS227 - Sounder used without beacon functionality, Volume Medium | C201: 0 | D201: pcs. | E201: 0 | F201: pcs. | G201: 0 | H201: pcs. | I201: 0 | J201: pcs. | K201: 0 | L201: pcs. | M201: 0 | N201: pcs. | O201: 0 | P201: pcs. | Q201: 0 | R201: pcs. | U201: 1.25 | V201: 1.25 | W201: 0 | X201: 13 | Y201: 13 | Z201: 0 | AA201: 1 | AB201: 1 | AC201: 0 | AD201: 1 | AE201: 0 | AF201: FDS226, FDS227 - Sounder used without beacon functionality, Volume Medium
B202: FDS226, FDS227 - Sounder used without beacon functionality, Volume Low | C202: 0 | D202: pcs. | E202: 0 | F202: pcs. | G202: 0 | H202: pcs. | I202: 0 | J202: pcs. | K202: 0 | L202: pcs. | M202: 0 | N202: pcs. | O202: 0 | P202: pcs. | Q202: 0 | R202: pcs. | U202: 1.25 | V202: 1.25 | W202: 0 | X202: 12 | Y202: 12 | Z202: 0 | AA202: 1 | AB202: 1 | AC202: 0 | AD202: 1 | AE202: 0 | AF202: FDS226, FDS227 - Sounder used without beacon functionality, Volume Low
AF203: 0
AF204: 0
AF205: 0
AF206: 0
AF207: 0
AF208: 0
AF209: 0
AF210: 0
AF211: 0
AF212: 0
B213: Alarm devices - Sound and Light (Beacon) Volume settings is assumed as "high" for calculation. | AF213: Alarm devices - Sound and Light (Beacon) Volume settings is assumed as "high" for calculation.
B214: FDS229-A, FDS229-R - Alarm sounder and beacon, amber or red, Light and Volume High | C214: 0 | D214: pcs. | E214: 0 | F214: pcs. | G214: 0 | H214: pcs. | I214: 0 | J214: pcs. | K214: 0 | L214: pcs. | M214: 0 | N214: pcs. | O214: 0 | P214: pcs. | Q214: 0 | R214: pcs. | U214: =V214+W214 -> 1 | V214: 1 | W214: 0 | X214: =Y214+Z214 -> 30 | Y214: 30 | Z214: 0 | AA214: 1 | AB214: 1 | AC214: 0 | AD214: 0 | AE214: 0 | AF214: FDS229-A, FDS229-R - Alarm sounder and beacon, amber or red, Light and Volume High
B215: FDS226 - Sounder beacon, Red Light, High Intensity | C215: 0 | D215: pcs. | E215: 0 | F215: pcs. | G215: 0 | H215: pcs. | I215: 0 | J215: pcs. | K215: 0 | L215: pcs. | M215: 0 | N215: pcs. | O215: 0 | P215: pcs. | Q215: 0 | R215: pcs. | U215: 1.25 | V215: 1.25 | W215: 0 | X215: 111 | Y215: 22 | Z215: 89 | AA215: 1 | AB215: 1 | AC215: 0 | AD215: 1 | AE215: 1 | AF215: FDS226 - Sounder beacon, Red Light, High Intensity
B216: FDS226 - Sounder beacon, Red Light, Medium Intensity | C216: 0 | D216: pcs. | E216: 0 | F216: pcs. | G216: 0 | H216: pcs. | I216: 0 | J216: pcs. | K216: 0 | L216: pcs. | M216: 0 | N216: pcs. | O216: 0 | P216: pcs. | Q216: 0 | R216: pcs. | U216: 1.25 | V216: 1.25 | W216: 0 | X216: 80 | Y216: 22 | Z216: 58 | AA216: 1 | AB216: 1 | AC216: 0 | AD216: 1 | AE216: 1 | AF216: =B216 -> FDS226 - Sounder beacon, Red Light, Medium Intensity
B217: FDS226 - Sounder beacon, Red Light, Low Intensity | C217: 0 | D217: pcs. | E217: 0 | F217: pcs. | G217: 0 | H217: pcs. | I217: 0 | J217: pcs. | K217: 0 | L217: pcs. | M217: 0 | N217: pcs. | O217: 0 | P217: pcs. | Q217: 0 | R217: pcs. | U217: 1.25 | V217: 1.25 | W217: 0 | X217: 64 | Y217: 22 | Z217: 42 | AA217: 1 | AB217: 1 | AC217: 0 | AD217: 1 | AE217: 1 | AF217: FDS226 - Sounder beacon, Red Light, Low Intensity
B218: FDS226 - Sounder beacon, Red Light, Indicator Mode | C218: 0 | D218: pcs. | E218: 0 | F218: pcs. | G218: 0 | H218: pcs. | I218: 0 | J218: pcs. | K218: 0 | L218: pcs. | M218: 0 | N218: pcs. | O218: 0 | P218: pcs. | Q218: 0 | R218: pcs. | U218: 1.25 | V218: 1.25 | W218: 0 | X218: 30 | Y218: 22 | Z218: 8 | AA218: 1 | AB218: 1 | AC218: 0 | AD218: 1 | AE218: 0 | AF218: FDS226 - Sounder beacon, Red Light, Indicator Mode
B219: FDS226 - Sounder beacon, White Light, High Intensity | C219: 0 | D219: pcs. | E219: 0 | F219: pcs. | G219: 0 | H219: pcs. | I219: 0 | J219: pcs. | K219: 0 | L219: pcs. | M219: 0 | N219: pcs. | O219: 0 | P219: pcs. | Q219: 0 | R219: pcs. | U219: 1.25 | V219: 1.25 | W219: 0 | X219: 108 | Y219: 22 | Z219: 86 | AA219: 1 | AB219: 1 | AC219: 0 | AD219: 1 | AE219: 1 | AF219: FDS226 - Sounder beacon, White Light, High Intensity
B220: FDS226 - Sounder beacon, White Light, Medium Intensity | C220: 0 | D220: pcs. | E220: 0 | F220: pcs. | G220: 0 | H220: pcs. | I220: 0 | J220: pcs. | K220: 0 | L220: pcs. | M220: 0 | N220: pcs. | O220: 0 | P220: pcs. | Q220: 0 | R220: pcs. | U220: 1.25 | V220: 1.25 | W220: 0 | X220: 62 | Y220: 22 | Z220: 40 | AA220: 1 | AB220: 1 | AC220: 0 | AD220: 1 | AE220: 1 | AF220: FDS226 - Sounder beacon, White Light, Medium Intensity
B221: FDS226 - Sounder beacon, White Light, Low Intensity | C221: 0 | D221: pcs. | E221: 0 | F221: pcs. | G221: 0 | H221: pcs. | I221: 0 | J221: pcs. | K221: 0 | L221: pcs. | M221: 0 | N221: pcs. | O221: 0 | P221: pcs. | Q221: 0 | R221: pcs. | U221: 1.25 | V221: 1.25 | W221: 0 | X221: 51 | Y221: 22 | Z221: 29 | AA221: 1 | AB221: 1 | AC221: 0 | AD221: 1 | AE221: 1 | AF221: FDS226 - Sounder beacon, White Light, Low Intensity
B222: FDS226 - Sounder beacon, White Light, Indicator Mode | C222: 0 | D222: pcs. | E222: 0 | F222: pcs. | G222: 0 | H222: pcs. | I222: 0 | J222: pcs. | K222: 0 | L222: pcs. | M222: 0 | N222: pcs. | O222: 0 | P222: pcs. | Q222: 0 | R222: pcs. | U222: 1.25 | V222: 1.25 | W222: 0 | X222: 30 | Y222: 22 | Z222: 8 | AA222: 1 | AB222: 1 | AC222: 0 | AD222: 1 | AE222: 0 | AF222: FDS226 - Sounder beacon, White Light, Indicator Mode
B223: FDSB226 - Sounder beacon base, Red Light, High Intensity | C223: 0 | D223: pcs. | E223: 0 | F223: pcs. | G223: 0 | H223: pcs. | I223: 0 | J223: pcs. | K223: 0 | L223: pcs. | M223: 0 | N223: pcs. | O223: 0 | P223: pcs. | Q223: 0 | R223: pcs. | U223: 1.25 | V223: 1.25 | W223: 0 | X223: 116 | Y223: 23 | Z223: 93 | AA223: 1 | AB223: 1 | AC223: 0 | AD223: 1 | AE223: 1 | AF223: FDSB226 - Sounder beacon base, Red Light, High Intensity
B224: FDSB226 - Sounder beacon base, Red Light, Medium Intensity | C224: 0 | D224: pcs. | E224: 0 | F224: pcs. | G224: 0 | H224: pcs. | I224: 0 | J224: pcs. | K224: 0 | L224: pcs. | M224: 0 | N224: pcs. | O224: 0 | P224: pcs. | Q224: 0 | R224: pcs. | U224: 1.25 | V224: 1.25 | W224: 0 | X224: 88 | Y224: 23 | Z224: 65 | AA224: 1 | AB224: 1 | AC224: 0 | AD224: 1 | AE224: 1 | AF224: FDSB226 - Sounder beacon base, Red Light, Medium Intensity
B225: FDSB226 - Sounder beacon base, Red Light, Low Intensity | C225: 0 | D225: pcs. | E225: 0 | F225: pcs. | G225: 0 | H225: pcs. | I225: 0 | J225: pcs. | K225: 0 | L225: pcs. | M225: 0 | N225: pcs. | O225: 0 | P225: pcs. | Q225: 0 | R225: pcs. | U225: 1.25 | V225: 1.25 | W225: 0 | X225: 60 | Y225: 23 | Z225: 37 | AA225: 1 | AB225: 1 | AC225: 0 | AD225: 1 | AE225: 1 | AF225: FDSB226 - Sounder beacon base, Red Light, Low Intensity
B226: FDSB226 - Sounder beacon base, Red Light, Indicator Mode | C226: 0 | D226: pcs. | E226: 0 | F226: pcs. | G226: 0 | H226: pcs. | I226: 0 | J226: pcs. | K226: 0 | L226: pcs. | M226: 0 | N226: pcs. | O226: 0 | P226: pcs. | Q226: 0 | R226: pcs. | U226: 1.25 | V226: 1.25 | W226: 0 | X226: 31 | Y226: 23 | Z226: 8 | AA226: 1 | AB226: 1 | AC226: 0 | AD226: 1 | AE226: 0 | AF226: FDSB226 - Sounder beacon base, Red Light, Indicator Mode
B227: FDSB226 - Sounder beacon base, White Light, High Intensity | C227: 0 | D227: pcs. | E227: 0 | F227: pcs. | G227: 0 | H227: pcs. | I227: 0 | J227: pcs. | K227: 0 | L227: pcs. | M227: 0 | N227: pcs. | O227: 0 | P227: pcs. | Q227: 0 | R227: pcs. | U227: 1.25 | V227: 1.25 | W227: 0 | X227: 132 | Y227: 23 | Z227: 109 | AA227: 1 | AB227: 1 | AC227: 0 | AD227: 1 | AE227: 1 | AF227: FDSB226 - Sounder beacon base, White Light, High Intensity
B228: FDSB226 - Sounder beacon base, White Light, Medium Intensity | C228: 0 | D228: pcs. | E228: 0 | F228: pcs. | G228: 0 | H228: pcs. | I228: 0 | J228: pcs. | K228: 0 | L228: pcs. | M228: 0 | N228: pcs. | O228: 0 | P228: pcs. | Q228: 0 | R228: pcs. | U228: 1.25 | V228: 1.25 | W228: 0 | X228: 82 | Y228: 23 | Z228: 59 | AA228: 1 | AB228: 1 | AC228: 0 | AD228: 1 | AE228: 1 | AF228: FDSB226 - Sounder beacon base, White Light, Medium Intensity
B229: FDSB226 - Sounder beacon base, White Light, Low Intensity | C229: 0 | D229: pcs. | E229: 0 | F229: pcs. | G229: 0 | H229: pcs. | I229: 0 | J229: pcs. | K229: 0 | L229: pcs. | M229: 0 | N229: pcs. | O229: 0 | P229: pcs. | Q229: 0 | R229: pcs. | U229: 1.25 | V229: 1.25 | W229: 0 | X229: 49 | Y229: 23 | Z229: 26 | AA229: 1 | AB229: 1 | AC229: 0 | AD229: 1 | AE229: 1 | AF229: FDSB226 - Sounder beacon base, White Light, Low Intensity
B230: FDSB226 - Sounder beacon base, White Light, Indicator Mode | C230: 0 | D230: pcs. | E230: 0 | F230: pcs. | G230: 0 | H230: pcs. | I230: 0 | J230: pcs. | K230: 0 | L230: pcs. | M230: 0 | N230: pcs. | O230: 0 | P230: pcs. | Q230: 0 | R230: pcs. | U230: 1.25 | V230: 1.25 | W230: 0 | X230: 31 | Y230: 23 | Z230: 8 | AA230: 1 | AB230: 1 | AC230: 0 | AD230: 1 | AE230: 0 | AF230: FDSB226 - Sounder beacon base, White Light, Indicator Mode
B231: DBS728 - Sounder beacon interbase, Sound and Light High | C231: 0 | D231: pcs. | E231: 0 | F231: pcs. | G231: 0 | H231: pcs. | I231: 0 | J231: pcs. | K231: 0 | L231: pcs. | M231: 0 | N231: pcs. | O231: 0 | P231: pcs. | Q231: 0 | R231: pcs. | U231: 1 | V231: 1 | W231: 0 | X231: 40 | Y231: 40 | Z231: 0 | AA231: 1 | AB231: 1 | AC231: 0 | AD231: 0 | AE231: 0 | AF231: DBS728 - Sounder beacon interbase, Sound and Light High
B232: DBS729 - Sounder beacon interbase, Sound and Light High | C232: 0 | D232: pcs. | E232: 0 | F232: pcs. | G232: 0 | H232: pcs. | I232: 0 | J232: pcs. | K232: 0 | L232: pcs. | M232: 0 | N232: pcs. | O232: 0 | P232: pcs. | Q232: 0 | R232: pcs. | U232: 1 | V232: 1 | W232: 0 | X232: 41 | Y232: 41 | Z232: 0 | AA232: 1 | AB232: 1 | AC232: 0 | AD232: 0 | AE232: 0 | AF232: DBS729 - Sounder beacon interbase, Sound and Light High
B233: FDS366-RR Sounder used with beacon functionality, Red Light, Medium Intensity | C233: 0 | D233: pcs. | E233: 0 | F233: pcs. | G233: 0 | H233: pcs. | I233: 0 | J233: pcs. | K233: 0 | L233: pcs. | M233: 0 | N233: pcs. | O233: 0 | P233: pcs. | Q233: 0 | R233: pcs. | U233: 1.25 | V233: 1.25 | W233: 0 | X233: 80 | Y233: 22 | Z233: 58 | AA233: 1 | AB233: 1 | AC233: 0 | AD233: 1 | AE233: 1 | AF233: FDS366-RR Sounder used with beacon functionality, Red Light, Medium Intensity
B234: FDS366-RR Sounder used with beacon functionality, Red Light Indicator Mode | C234: 0 | D234: pcs. | E234: 0 | F234: pcs. | G234: 0 | H234: pcs. | I234: 0 | J234: pcs. | K234: 0 | L234: pcs. | M234: 0 | N234: pcs. | O234: 0 | P234: pcs. | Q234: 0 | R234: pcs. | U234: 1.25 | V234: 1.25 | W234: 0 | X234: 30 | Y234: 22 | Z234: 8 | AA234: 1 | AB234: 1 | AC234: 0 | AD234: 1 | AE234: 0 | AF234: FDS366-RR Sounder used with beacon functionality, Red Light Indicator Mode
B235: FDS366-RW Sounder used with beacon functionality, White Light, Medium Intensity | C235: 0 | D235: pcs. | E235: 0 | F235: pcs. | G235: 0 | H235: pcs. | I235: 0 | J235: pcs. | K235: 0 | L235: pcs. | M235: 0 | N235: pcs. | O235: 0 | P235: pcs. | Q235: 0 | R235: pcs. | U235: 1.25 | V235: 1.25 | W235: 0 | X235: 62 | Y235: 22 | Z235: 40 | AA235: 1 | AB235: 1 | AC235: 0 | AD235: 1 | AE235: 1 | AF235: FDS366-RW Sounder used with beacon functionality, White Light, Medium Intensity
B236: FDS366-RW Sounder used with beacon functionality, White Light Indicator Mode | C236: 0 | D236: pcs. | E236: 0 | F236: pcs. | G236: 0 | H236: pcs. | I236: 0 | J236: pcs. | K236: 0 | L236: pcs. | M236: 0 | N236: pcs. | O236: 0 | P236: pcs. | Q236: 0 | R236: pcs. | U236: 1.25 | V236: 1.25 | W236: 0 | X236: 30 | Y236: 22 | Z236: 8 | AA236: 1 | AB236: 1 | AC236: 0 | AD236: 1 | AE236: 0 | AF236: FDS366-RW Sounder used with beacon functionality, White Light Indicator Mode
... 207 more rows

Sheet Panel_values (hidden)
A1: Panel Types | B1: Variants | M1: # of entries
A2: Types | B2: 1 | C2: 2 | D2: 3 | E2: 4 | F2: 5 | G2: 6 | H2: 7 | I2: 8 | J2: 9 | K2: 10 | L2: 11
A3: 1 | B3: FC361-ZZ | C3: FC361-ZA | D3: FC361-YZ | E3: FC361-YA | F3: -- | G3: -- | H3: -- | I3: -- | J3: -- | K3: -- | L3: -- | M3: 4
A4: 2 | B4: FC362-ZZ | C4: FC362-ZA | D4: -- | E4: -- | F4: -- | G4: -- | H4: -- | I4: -- | J4: -- | K4: -- | L4: -- | M4: 4
A5: 3 | B5: FC724-ZA | C5: FC724-ZE | D5: FC724-HA | E5: -- | F5: -- | G5: -- | H5: -- | I5: -- | J5: -- | K5: -- | L5: -- | M5: 3
A6: 4 | B6: FC726-ZA | C6: -- | D6: -- | E6: -- | F6: -- | G6: -- | H6: -- | I6: -- | J6: -- | K6: -- | L6: -- | M6: 1
A7: 5 | B7: FT724-ZZ | C7: FT724-HZ | D7: -- | E7: -- | F7: -- | G7: -- | H7: -- | I7: -- | J7: -- | K7: -- | L7: -- | M7: 2
A8: 6 | B8: -- | C8: -- | D8: -- | E8: -- | F8: -- | G8: -- | H8: -- | I8: -- | J8: -- | K8: -- | L8: -- | M8: 0
A11: Panel Order Numbers | B11: =B$1 -> Variants
A12: =A$2 -> Types | B12: 1 | C12: 2 | D12: 3 | E12: 4 | F12: 5 | G12: 6 | H12: 7 | I12: 8 | J12: 9 | K12: 10 | L12: 11
A13: =A$3 -> 1 | B13: S54433-C112-A1 | C13: S54433-C111-A1 | D13: S54433-C110-A1 | E13: S54433-C109-A1 | F13: -- | G13: -- | H13: -- | I13: -- | J13: -- | K13: -- | L13: --
A14: =A$4 -> 2 | B14: S54433-C112-A1 | C14: S54433-C111-A1 | D14: S54433-C110-A1 | E14: S54433-C109-A1 | F14: -- | G14: -- | H14: -- | I14: -- | J14: -- | K14: -- | L14: --
A15: =A$5 -> 3 | B15: S54400-C30-A2 | C15: S54400-C30-A3 | D15: S54400-C30-A1 | E15: -- | F15: -- | G15: -- | H15: -- | I15: -- | J15: -- | K15: -- | L15: --
A16: =A$6 -> 4 | B16: S54400-C87-A1 | C16: -- | D16: -- | E16: -- | F16: -- | G16: -- | H16: -- | I16: -- | J16: -- | K16: -- | L16: --
A17: =A$7 -> 5 | B17: S54400-C31-A2 | C17: S54400-C31-A1 | D17: -- | E17: -- | F17: -- | G17: -- | H17: -- | I17: -- | J17: -- | K17: -- | L17: --
A18: =A$8 -> 6 | B18: -- | C18: -- | D18: -- | E18: -- | F18: -- | G18: -- | H18: -- | I18: -- | J18: -- | K18: -- | L18: --
A20: Panel Descriptions | B20: =B$1 -> Variants
A21: =A$2 -> Types | B21: 1 | C21: 2 | D21: 3 | E21: 4 | F21: 5 | G21: 6 | H21: 7 | I21: 8 | J21: 9 | K21: 10 | L21: 11
A22: =A$3 -> 1 | B22: International | C22: International | D22: 16 zone LED indicator | E22: 16 zone LED indicator | F22: -- | G22: -- | H22: -- | I22: -- | J22: -- | K22: -- | L22: --
A23: =A$4 -> 2 | B23: International | C23: International | D23: 32 zone LED indicator | E23: 32 zone LED indicator | F23: NL, with EVAC (10-zone) | G23: -- | H23: -- | I23: -- | J23: -- | K23: -- | L23: --
A24: =A$5 -> 3 | B24: International | C24: 48 zone LED indicator | D24: NL, with EVAC (10-zone) | E24: -- | F24: -- | G24: -- | H24: -- | I24: -- | J24: -- | K24: -- | L24: --
A25: =A$6 -> 4 | B25: International | D25: -- | E25: -- | F25: -- | G25: -- | H25: -- | I25: -- | J25: -- | K25: -- | L25: --
A26: =A$7 -> 5 | B26: International | C26: NL, with EVAC (10-zone) | D26: -- | E26: -- | F26: -- | G26: -- | H26: -- | I26: -- | J26: -- | K26: -- | L26: --
A27: =A$8 -> 6 | B27: -- | C27: -- | D27: -- | E27: -- | F27: -- | G27: -- | H27: -- | I27: -- | J27: -- | K27: -- | L27: --
A29: Panel LED Equipment | B29: =B$1 -> Variants
A30: =A$2 -> Types | B30: 1 | C30: 2 | D30: 3 | E30: 4 | F30: 5 | G30: 6 | H30: 7 | I30: 8 | J30: 9 | K30: 10 | L30: 11
A31: =A$3 -> 1 | B31: 0 | C31: 0 | D31: 0 | E31: 0 | F31: 0 | G31: 0 | H31: 0 | I31: 0 | J31: 0 | K31: 0 | L31: 0
A32: =A$4 -> 2 | B32: 0 | C32: 0 | D32: 0 | E32: 2 | F32: 0 | G32: 0 | H32: 0 | I32: 0 | J32: 0 | K32: 0 | L32: 0
A33: =A$5 -> 3 | B33: 0 | C33: 2 | D33: 0 | E33: 0 | F33: 0 | G33: 0 | H33: 0 | I33: 0 | J33: 0 | K33: 0 | L33: 0
A34: =A$6 -> 4 | B34: 0 | C34: 0 | D34: 0 | E34: 0 | F34: 0 | G34: 0 | H34: 0 | I34: 0 | J34: 0 | K34: 0 | L34: 0
A35: =A$7 -> 5 | B35: 0 | C35: 0 | D35: 0 | E35: 0 | F35: 0 | G35: 0 | H35: 0 | I35: 0 | J35: 0 | K35: 0 | L35: 0
A36: =A$8 -> 6 | B36: 0 | C36: 0 | D36: 0 | E36: 0 | F36: 0 | G36: 0 | H36: 0 | I36: 0 | J36: 0 | K36: 0 | L36: 0
A38: Panel FBA Equipment | B38: =B$1 -> Variants
A39: =A$2 -> Types | B39: 1 | C39: 2 | D39: 3 | E39: 4 | F39: 5 | G39: 6 | H39: 7 | I39: 8 | J39: 9 | K39: 10 | L39: 11
A40: =A$3 -> 1 | B40: 0 | C40: 0 | D40: 0 | E40: 0 | F40: 0 | G40: 0 | H40: 0 | I40: 0 | J40: 0 | K40: 0 | L40: 0
A41: =A$4 -> 2 | B41: 0 | C41: 0 | D41: 0 | E41: 0 | F41: 0 | G41: 0 | H41: 0 | I41: 0 | J41: 0 | K41: 0 | L41: 0
A42: =A$5 -> 3 | B42: 0 | C42: 0 | D42: 0 | E42: 0 | F42: 0 | G42: 0 | H42: 0 | I42: 0 | J42: 0 | K42: 0 | L42: 0
A43: =A$6 -> 4 | B43: 0 | C43: 0 | D43: 0 | E43: 0 | F43: 0 | G43: 0 | H43: 0 | I43: 0 | J43: 0 | K43: 0 | L43: 0
A44: =A$7 -> 5 | B44: 0 | C44: 0 | D44: 0 | E44: 0 | F44: 0 | G44: 0 | H44: 0 | I44: 0 | J44: 0 | K44: 0 | L44: 0
A45: =A$8 -> 6 | B45: 0 | C45: 0 | D45: 0 | E45: 0 | F45: 0 | G45: 0 | H45: 0 | I45: 0 | J45: 0 | K45: 0 | L45: 0
A47: Panel EVAC Equipment | B47: =B$1 -> Variants
A48: =A$2 -> Types | B48: 1 | C48: 2 | D48: 3 | E48: 4 | F48: 5 | G48: 6 | H48: 7 | I48: 8 | J48: 9 | K48: 10 | L48: 11
A49: =A$3 -> 1 | B49: 0 | C49: 0 | D49: 1 | E49: 0 | F49: 0 | G49: 0 | H49: 0 | I49: 0 | J49: 0 | K49: 0 | L49: 0
A50: =A$4 -> 2 | B50: 0 | C50: 0 | D50: 0 | E50: 0 | F50: 1 | G50: 0 | H50: 0 | I50: 0 | J50: 0 | K50: 0 | L50: 0
A51: =A$5 -> 3 | B51: 0 | C51: 0 | D51: 1 | E51: 0 | F51: 0 | G51: 0 | H51: 0 | I51: 0 | J51: 0 | K51: 0 | L51: 0
A52: =A$6 -> 4 | B52: 0 | C52: 0 | D52: 0 | E52: 0 | F52: 0 | G52: 0 | H52: 0 | I52: 0 | J52: 0 | K52: 0 | L52: 0
A53: =A$7 -> 5 | B53: 0 | C53: 1 | D53: 0 | E53: 0 | F53: 0 | G53: 0 | H53: 0 | I53: 0 | J53: 0 | K53: 0 | L53: 0
A54: =A$8 -> 6 | B54: 0 | C54: 0 | D54: 0 | E54: 0 | F54: 0 | G54: 0 | H54: 0 | I54: 0 | J54: 0 | K54: 0 | L54: 0
A56: Equipment | B56: Periboards | C56: Card cage
A57: =A$2 -> Types | B57: 1 | C57: 2 | D57: 3 | E57: 4 | F57: 5 | G57: 6 | H57: 7 | I57: 8 | J57: 9 | K57: 10 | L57: 11
A58: =A$3 -> 1 | B58: C-NET | C58: -- | D58: -- | E58: -- | F58: -- | G58: -- | H58: -- | I58: -- | J58: -- | K58: -- | L58: --
A59: =A$4 -> 2 | B59: C-NET | C59: -- | D59: -- | E59: -- | F59: -- | G59: -- | H59: -- | I59: -- | J59: -- | K59: -- | L59: --
A60: =A$5 -> 3 | B60: FCI2004-A1 | C60: -- | D60: -- | E60: -- | F60: -- | G60: -- | H60: -- | I60: -- | J60: -- | K60: -- | L60: --
A61: =A$6 -> 4 | B61: FCI2004-A1 | C61: FCA2008-A1 | D61: -- | E61: -- | F61: -- | G61: -- | H61: -- | I61: -- | J61: -- | K61: -- | L61: --
A62: =A$7 -> 5 | B62: FTI2001-A1 | C62: -- | D62: -- | E62: -- | F62: -- | G62: -- | H62: -- | I62: -- | J62: -- | K62: -- | L62: --
A63: =A$8 -> 6 | B63: -- | C63: -- | D63: -- | E63: -- | F63: -- | G63: -- | H63: -- | I63: -- | J63: -- | K63: -- | L63: --
A65: Panel Supply Equipm. | B65: =B$1 -> Variants
A66: =A$2 -> Types | B66: 1 | C66: 2 | D66: 3 | E66: 4 | F66: 5 | G66: 6 | H66: 7 | I66: 8 | J66: 9 | K66: 10 | L66: 11
A67: =A$3 -> 1 | B67: 70 | C67: 70 | D67: 70 | E67: 70 | F67: -- | G67: -- | H67: -- | I67: -- | J67: -- | K67: -- | L67: --
A68: =A$4 -> 2 | B68: 70 | C68: 70 | D68: 70 | E68: 70 | F68: 150 | G68: -- | H68: -- | I68: -- | J68: -- | K68: -- | L68: --
A69: =A$5 -> 3 | B69: 150 | C69: 150 | D69: 150 | E69: -- | F69: -- | G69: -- | H69: -- | I69: -- | J69: -- | K69: -- | L69: --
A70: =A$6 -> 4 | B70: 150 | C70: -- | D70: -- | E70: -- | F70: -- | G70: -- | H70: -- | I70: -- | J70: -- | K70: -- | L70: --
A71: =A$7 -> 5 | B71: 70 | C71: 70 | D71: -- | E71: -- | F71: -- | G71: -- | H71: -- | I71: -- | J71: -- | K71: -- | L71: --
A72: =A$8 -> 6 | B72: -- | C72: -- | D72: -- | E72: -- | F72: -- | G72: -- | H72: -- | I72: -- | J72: -- | K72: -- | L72: --
A74: Max. fitting supply | B74: =B$1 -> Variants
A75: =A$2 -> Types | B75: 1 | C75: 2 | D75: 3 | E75: 4 | F75: 5 | G75: 6 | H75: 7 | I75: 8 | J75: 9 | K75: 10 | L75: 11
A76: =A$3 -> 1 | B76: 70 | C76: 70 | D76: 70 | E76: 70 | F76: -- | G76: -- | H76: -- | I76: -- | J76: -- | K76: -- | L76: --
A77: =A$4 -> 2 | B77: 70 | C77: 70 | D77: 70 | E77: 70 | F77: 300 | G77: -- | H77: -- | I77: -- | J77: -- | K77: -- | L77: --
A78: =A$5 -> 3 | B78: 300 | C78: 300 | D78: 300 | E78: -- | F78: -- | G78: -- | H78: -- | I78: -- | J78: -- | K78: -- | L78: --
A79: =A$6 -> 4 | B79: 300 | C79: -- | D79: -- | E79: -- | F79: -- | G79: -- | H79: -- | I79: -- | J79: -- | K79: -- | L79: --
A80: =A$7 -> 5 | B80: 70 | C80: 70 | D80: -- | E80: -- | F80: -- | G80: -- | H80: -- | I80: -- | J80: -- | K80: -- | L80: --
A81: =A$8 -> 6 | B81: -- | C81: -- | D81: -- | E81: -- | F81: -- | G81: -- | H81: -- | I81: -- | J81: -- | K81: -- | L81: --
A83: Panels Housings | B83: =B$1 -> Variants
A84: =A$2 -> Types | B84: 1 | C84: 2 | D84: 3 | E84: 4 | F84: 5 | G84: 6 | H84: 7 | I84: 8 | J84: 9 | K84: 10 | L84: 11
A85: =A$3 -> 1 | B85: Compact | C85: comfort | D85: Compact | E85: comfort | F85: -- | G85: -- | H85: -- | I85: -- | J85: -- | K85: -- | L85: --
A86: =A$4 -> 2 | B86: Compact | C86: comfort | D86: Compact | E86: comfort | F86: comfort | G86: -- | H86: -- | I86: -- | J86: -- | K86: -- | L86: --
A87: =A$5 -> 3 | B87: comfort | C87: comfort | D87: comfort | E87: -- | F87: -- | G87: -- | H87: -- | I87: -- | J87: -- | K87: -- | L87: --
A88: =A$6 -> 4 | B88: large | C88: -- | D88: -- | E88: -- | F88: -- | G88: -- | H88: -- | I88: -- | J88: -- | K88: -- | L88: --
A89: =A$7 -> 5 | B89: eco | C89: eco | D89: -- | E89: -- | F89: -- | G89: -- | H89: -- | I89: -- | J89: -- | K89: -- | L89: --
A90: =A$8 -> 6 | B90: -- | C90: -- | D90: -- | E90: -- | F90: -- | G90: -- | H90: -- | I90: -- | J90: -- | K90: -- | L90: --
A92: Max. fitting battery | B92: =B$1 -> Variants
A93: =A$2 -> Types | B93: 1 | C93: 2 | D93: 3 | E93: 4 | F93: 5 | G93: 6 | H93: 7 | I93: 8 | J93: 9 | K93: 10 | L93: 11
A94: =A$3 -> 1 | B94: 12 | C94: 25 | D94: 12 | E94: 25 | F94: -- | G94: -- | H94: -- | I94: -- | J94: -- | K94: -- | L94: --
A95: =A$4 -> 2 | B95: 12 | C95: 25 | D95: 12 | E95: 25 | F95: 26 | G95: -- | H95: -- | I95: -- | J95: -- | K95: -- | L95: --
A96: =A$5 -> 3 | B96: 26 | C96: 26 | D96: 26 | E96: -- | F96: -- | G96: -- | H96: -- | I96: -- | J96: -- | K96: -- | L96: --
A97: =A$6 -> 4 | B97: 45 | C97: -- | D97: -- | E97: -- | F97: -- | G97: -- | H97: -- | I97: -- | J97: -- | K97: -- | L97: --
A98: =A$7 -> 5 | B98: 7 | C98: 7 | D98: -- | E98: -- | F98: -- | G98: -- | H98: -- | I98: -- | J98: -- | K98: -- | L98: --
A99: =A$8 -> 6 | B99: -- | C99: -- | D99: -- | E99: -- | F99: -- | G99: -- | H99: -- | I99: -- | J99: -- | K99: -- | L99: --

Sheet FDnet_Ref (hidden)
B1: Planning of C-NET detector lines
B3: Purpose:
B4: With the project planning of the detector line the load of the line card is verified. This results in the definite:
B5: - number and type of devices per detector line
B6: - load of the panel in idle and alarm state
B10: Procedure:
B12: 1.) Choose correct Alarm indicator extras (per loop/stub)
B13: 2.) Choose Device population topology (loop or stub)
B14: 3.) Enter the number of devices per loop/stub in the table
B15: 4.) Input cable characteristics and cable length
B16: 5.) Choose calculation characteristics
B17: --> Worst case: All devices are placed at end of line for calculation
B18: --> Equally: All devices are distributed equally over cable length. Possibility to add extra start and end cable length
B19: 6.) Add start and end cable length in case of equal distribution
B20: 7.) Check that no input field is orange
B21: 8.) Click 'Press Button to refresh calculation'
B22: 9.) All data are now complete. The program calculates the configuration
B23: --> If all analyses are "green" , configuration is "Configuration valid"
B24: --> If some analysis field are red and "Configuration not valid" is red, change parameters to get a valid configuration
B32: Please consider:
B33: If a control is connected to an external AI, this must be entered at Ext. AI-Control rows
B35: yellow fields - Must be filled in by the user
B36: orange fields - Shows an input data error. These fields must be filled in by the user
B37: red fields - Calculated value, configuration not valid
B38: clear fields - Calculated value, additional information for the user
A46: Input number of devices
B48: Help values | U48: Abbreviations
U49: FDnetAK: FDnet Adressindex (Adresskennzahl), Number of by the device used bus-addresses (including sub-addresses)
C50: Loop / Stub | G50: Loop / Stub | K50: Loop / Stub | O50: Loop / Stub | U50: FDnetRK: FDnet Ruhestromkennzahl (Quietindex); average current of the device in idle state (in load factors). Necessary to calculate the emergency power
C51: Stubs | G51: Stubs | K51: Stubs | O51: Stubs | U51: FDnetMK: FDnet Melderkennzahl (Deviceindex); maximal average current of the device, normally in alarm state (in load factors), without internal or external AI
U52: FDnetTK: FDnet Trennerkennzahl (Isolator index); separator connection factor: devices with separator = 1, without separator = 0
C53: Stub1_1 | E53: Stub1_2 | G53: Stub2_1 | I53: Stub2_2 | K53: Stub3_1 | M53: Stub3_2 | O53: Stub4_1 | Q53: Stub4_2 | U53: Internal AI: Device has an internal AI
C54: TRUE | E54: TRUE | G54: TRUE | I54: TRUE | K54: TRUE | M54: TRUE | O54: TRUE | Q54: TRUE | U54: Constant Current: Device consumes current independent from device voltage
U55: Constant Power: Device consumes current regulated by device voltage
B56: Selection Card (Normal, PowerBus) | U56: Low ohmic FET: Device has an low ohmic isolator FET
B57: 1 | C57: Selection card | U57: 16V min. device voltage: Device need at min. 16V
B61: Alarm indicator extras
B62: Alarm Indicator extras
B63: None | C63: Alarm Indicator extras
B64: 0.005 | C64: Alarm Indicator Current [A]
B65: 0.0004 | C65: Alarm Indicator Current Ex-Line [A]
B68: Choose max. Line current
B69: Choose Current
B70: 0.5A | C70: Chosen card current
B74: ExtensionView
B75: TRUE
B76: Ext. changable
B77: TRUE
B78: Loop2 visible
B79: TRUE
B80: Device Population | C80: Line card (C-NET) FCL2001-A1 | U80: FDnetRK | X80: FDnetMK
U81: Total | V81: Constant | X81: Total | Y81: Constant
C82: Stub1_1 | E82: Stub1_2 | G82: Stub2_1 | I82: Stub2_2 | K82: Stub3_1 | M82: Stub3_2 | O82: Stub4_1 | Q82: Stub4_2 | V82: Current | W82: Power | Y82: Current | Z82: Power | AA82: FDnetTK | AB82: FDnetAK | AC82: Internal AI | AD82: Low ohmic FET | AE82: 16V min. device voltage | AF82: Remarks
B83: Point detectors | V83: Constant Current | Y83: constant power | AF83: Point detectors
B84: OP720 - Smoke detector | C84: 0 | D84: pcs. | E84: 0 | F84: pcs. | G84: 0 | H84: pcs. | I84: 0 | J84: pcs. | K84: 0 | L84: pcs. | M84: 0 | N84: pcs. | O84: 0 | P84: pcs. | Q84: 0 | R84: pcs. | U84: =V84+W84 -> 1 | V84: 1 | W84: 0 | X84: =Y84+Z84 -> 1 | Y84: 1 | Z84: 0 | AA84: 1 | AB84: 1 | AC84: 1 | AD84: 0 | AE84: 0 | AF84: =B84 -> OP720 - Smoke detector
B85: HI722 - Heat detector | C85: 0 | D85: pcs. | E85: 0 | F85: pcs. | G85: 0 | H85: pcs. | I85: 0 | J85: pcs. | K85: 0 | L85: pcs. | M85: 0 | N85: pcs. | O85: 0 | P85: pcs. | Q85: 0 | R85: pcs. | U85: =V85+W85 -> 1 | V85: 1 | W85: 0 | X85: =Y85+Z85 -> 1 | Y85: 1 | Z85: 0 | AA85: 1 | AB85: 1 | AC85: 1 | AD85: 0 | AE85: 0 | AF85: HI722 - Heat detector
B86: HI720 - Heat detector | C86: 0 | D86: pcs. | E86: 0 | F86: pcs. | G86: 0 | H86: pcs. | I86: 0 | J86: pcs. | K86: 0 | L86: pcs. | M86: 0 | N86: pcs. | O86: 0 | P86: pcs. | Q86: 0 | R86: pcs. | U86: 1 | V86: 1 | W86: 0 | X86: 1 | Y86: 1 | Z86: 0 | AA86: 1 | AB86: 1 | AC86: 1 | AD86: 0 | AE86: 0 | AF86: HI720 - Heat detector
B87: OH720 - Multi Sensor detector | C87: 0 | D87: pcs. | E87: 0 | F87: pcs. | G87: 0 | H87: pcs. | I87: 0 | J87: pcs. | K87: 0 | L87: pcs. | M87: 0 | N87: pcs. | O87: 0 | P87: pcs. | Q87: 0 | R87: pcs. | U87: 1 | V87: 1 | W87: 0 | X87: 1 | Y87: 1 | Z87: 0 | AA87: 1 | AB87: 1 | AC87: 1 | AD87: 0 | AE87: 0 | AF87: OH720 - Multi Sensor detector
B88: OOH740 - Multi Sensor detector | C88: 0 | D88: pcs. | E88: 0 | F88: pcs. | G88: 0 | H88: pcs. | I88: 0 | J88: pcs. | K88: 0 | L88: pcs. | M88: 0 | N88: pcs. | O88: 0 | P88: pcs. | Q88: 0 | R88: pcs. | U88: 1 | V88: 1 | W88: 0 | X88: 1 | Y88: 1 | Z88: 0 | AA88: 1 | AB88: 1 | AC88: 1 | AD88: 0 | AE88: 0 | AF88: OOH740 - Multi Sensor detector
B89: OP360 - Smoke detector | C89: 0 | D89: pcs. | E89: 0 | F89: pcs. | G89: 0 | H89: pcs. | I89: 0 | J89: pcs. | K89: 0 | L89: pcs. | M89: 0 | N89: pcs. | O89: 0 | P89: pcs. | Q89: 0 | R89: pcs. | U89: 1 | V89: 1 | W89: 0 | X89: 1 | Y89: 1 | Z89: 0 | AA89: 1 | AB89: 1 | AC89: 1 | AD89: 0 | AE89: 0 | AF89: OP360 - Smoke detector
B90: OH360 - Multi-sensor smoke detector | C90: 0 | D90: pcs. | E90: 0 | F90: pcs. | G90: 0 | H90: pcs. | I90: 0 | J90: pcs. | K90: 0 | L90: pcs. | M90: 0 | N90: pcs. | O90: 0 | P90: pcs. | Q90: 0 | R90: pcs. | U90: 1 | V90: 1 | W90: 0 | X90: 1 | Y90: 1 | Z90: 0 | AA90: 1 | AB90: 1 | AC90: 1 | AD90: 0 | AE90: 0 | AF90: OH360 - Multi-sensor smoke detector
B91: HI360 - Heat detector (RoR) | C91: 0 | D91: pcs. | E91: 0 | F91: pcs. | G91: 0 | H91: pcs. | I91: 0 | J91: pcs. | K91: 0 | L91: pcs. | M91: 0 | N91: pcs. | O91: 0 | P91: pcs. | Q91: 0 | R91: pcs. | U91: 1 | V91: 1 | W91: 0 | X91: 1 | Y91: 1 | Z91: 0 | AA91: 1 | AB91: 1 | AC91: 1 | AD91: 0 | AE91: 0 | AF91: HI360 - Heat detector (RoR)
U92: 0 | X92: 0 | AF92: 0
U93: 0 | X93: 0 | AF93: 0
U94: 0 | X94: 0 | AF94: 0
U95: 0 | X95: 0 | AF95: 0
U96: 0 | X96: 0 | AF96: 0
U97: 0 | X97: 0 | AF97: 0
U98: 0 | X98: 0 | AF98: 0
U99: 0 | X99: 0 | AF99: 0
B100: Special detectors | AF100: Special detectors
B101: FDF241-9 - Infrared flame detector | C101: 0 | D101: pcs. | E101: 0 | F101: pcs. | G101: 0 | H101: pcs. | I101: 0 | J101: pcs. | K101: 0 | L101: pcs. | M101: 0 | N101: pcs. | O101: 0 | P101: pcs. | Q101: 0 | R101: pcs. | U101: 3 | V101: 3 | W101: 0 | X101: 3 | Y101: 3 | Z101: 0 | AA101: 1 | AB101: 1 | AC101: 1 | AD101: 0 | AE101: 0 | AF101: FDF241-9 - Infrared flame detector
B102: FDL241-9 - Linear smoke detector | C102: 0 | D102: pcs. | E102: 0 | F102: pcs. | G102: 0 | H102: pcs. | I102: 0 | J102: pcs. | K102: 0 | L102: pcs. | M102: 0 | N102: pcs. | O102: 0 | P102: pcs. | Q102: 0 | R102: pcs. | U102: 4 | V102: 4 | W102: 0 | X102: 4 | Y102: 4 | Z102: 0 | AA102: 1 | AB102: 1 | AC102: 1 | AD102: 0 | AE102: 0 | AF102: FDL241-9 - Linear smoke detector
B103: OOHC740 - Neural Fire and CO detector | C103: 0 | D103: pcs. | E103: 0 | F103: pcs. | G103: 0 | H103: pcs. | I103: 0 | J103: pcs. | K103: 0 | L103: pcs. | M103: 0 | N103: pcs. | O103: 0 | P103: pcs. | Q103: 0 | R103: pcs. | U103: 2 | V103: 2 | W103: 0 | X103: 2 | Y103: 2 | Z103: 0 | AA103: 1 | AB103: 1 | AC103: 1 | AD103: 0 | AE103: 0 | AF103: OOHC740 - Neural Fire and CO detector
U104: 0 | X104: 0 | AF104: 0
U105: 0 | X105: 0 | AF105: 0
U106: 0 | X106: 0 | AF106: 0
U107: 0 | X107: 0 | AF107: 0
U108: 0 | X108: 0 | AF108: 0
U109: 0 | X109: 0 | AF109: 0
U110: 0 | X110: 0 | AF110: 0
U111: 0 | X111: 0 | AF111: 0
U112: 0 | X112: 0 | AF112: 0
U113: 0 | X113: 0 | AF113: 0
U114: 0 | X114: 0 | AF114: 0
B115: Manual call points | AF115: Manual call points
B116: FDM22x - Manual call points | C116: 0 | D116: pcs. | E116: 0 | F116: pcs. | G116: 0 | H116: pcs. | I116: 0 | J116: pcs. | K116: 0 | L116: pcs. | M116: 0 | N116: pcs. | O116: 0 | P116: pcs. | Q116: 0 | R116: pcs. | U116: 1 | V116: 1 | W116: 0 | X116: 1 | Y116: 1 | Z116: 0 | AA116: 1 | AB116: 1 | AC116: 1 | AD116: 0 | AE116: 0 | AF116: FDM22x - Manual call points
B117: FDM231 - Manual call point | C117: 0 | D117: pcs. | E117: 0 | F117: pcs. | G117: 0 | H117: pcs. | I117: 0 | J117: pcs. | K117: 0 | L117: pcs. | M117: 0 | N117: pcs. | O117: 0 | P117: pcs. | Q117: 0 | R117: pcs. | U117: 1 | V117: 1 | W117: 0 | X117: 1 | Y117: 1 | Z117: 0 | AA117: 1 | AB117: 1 | AC117: 1 | AD117: 0 | AE117: 0 | AF117: FDM231 - Manual call point
B118: FDM365-RP - Resettable MCP | C118: 0 | D118: pcs. | E118: 0 | F118: pcs. | G118: 0 | H118: pcs. | I118: 0 | J118: pcs. | K118: 0 | L118: pcs. | M118: 0 | N118: pcs. | O118: 0 | P118: pcs. | Q118: 0 | R118: pcs. | U118: 1 | V118: 1 | W118: 0 | X118: 1 | Y118: 1 | Z118: 0 | AA118: 1 | AB118: 1 | AC118: 1 | AD118: 0 | AE118: 0 | AF118: FDM365-RP - Resettable MCP
U119: 0 | X119: 0 | AF119: 0
U120: 0 | X120: 0 | AF120: 0
U121: 0 | X121: 0 | AF121: 0
U122: 0 | X122: 0 | AF122: 0
U123: 0 | X123: 0 | AF123: 0
U124: 0 | X124: 0 | AF124: 0
U125: 0 | X125: 0 | AF125: 0
U126: 0 | X126: 0 | AF126: 0
B127: Line modules | AF127: Line modules
B128: FDCI221 - Input module (1I) | C128: 0 | D128: pcs. | E128: 0 | F128: pcs. | G128: 0 | H128: pcs. | I128: 0 | J128: pcs. | K128: 0 | L128: pcs. | M128: 0 | N128: pcs. | O128: 0 | P128: pcs. | Q128: 0 | R128: pcs. | U128: 2 | V128: 2 | W128: 0 | X128: 2 | Y128: 2 | Z128: 0 | AA128: 1 | AB128: 1 | AC128: 0 | AD128: 0 | AE128: 0 | AF128: FDCI221 - Input module (1I)
B129: FDCI222 - Input module (4I) | C129: 0 | D129: pcs. | E129: 0 | F129: pcs. | G129: 0 | H129: pcs. | I129: 0 | J129: pcs. | K129: 0 | L129: pcs. | M129: 0 | N129: pcs. | O129: 0 | P129: pcs. | Q129: 0 | R129: pcs. | U129: 2 | V129: 2 | W129: 0 | X129: 2 | Y129: 2 | Z129: 0 | AA129: 1 | AB129: 1 | AC129: 0 | AD129: 0 | AE129: 0 | AF129: FDCI222 - Input module (4I)
B130: FDCIO221 - In/Output module (1I&1O) | C130: 0 | D130: pcs. | E130: 0 | F130: pcs. | G130: 0 | H130: pcs. | I130: 0 | J130: pcs. | K130: 0 | L130: pcs. | M130: 0 | N130: pcs. | O130: 0 | P130: pcs. | Q130: 0 | R130: pcs. | U130: 2 | V130: 2 | W130: 0 | X130: 2 | Y130: 2 | Z130: 0 | AA130: 1 | AB130: 1 | AC130: 0 | AD130: 0 | AE130: 0 | AF130: FDCIO221 - In/Output module (1I&1O)
B131: FDCIO222 - In/Output module (4I&4O) | C131: 0 | D131: pcs. | E131: 0 | F131: pcs. | G131: 0 | H131: pcs. | I131: 0 | J131: pcs. | K131: 0 | L131: pcs. | M131: 0 | N131: pcs. | O131: 0 | P131: pcs. | Q131: 0 | R131: pcs. | U131: 3 | V131: 3 | W131: 0 | X131: 3 | Y131: 3 | Z131: 0 | AA131: 1 | AB131: 1 | AC131: 0 | AD131: 0 | AE131: 0 | AF131: FDCIO222 - In/Output module (4I&4O)
B132: FDCIO224 - In/Output module (4I&4O) | C132: 0 | D132: pcs. | E132: 0 | F132: pcs. | G132: 0 | H132: pcs. | I132: 0 | J132: pcs. | K132: 0 | L132: pcs. | M132: 0 | N132: pcs. | O132: 0 | P132: pcs. | Q132: 0 | R132: pcs. | U132: 3 | V132: 3 | W132: 0 | X132: 3 | Y132: 3 | Z132: 0 | AA132: 1 | AB132: 1 | AC132: 0 | AD132: 0 | AE132: 0 | AF132: FDCIO224 - In/Output module (4I&4O)
B133: FDCL221 - Line isolator | C133: 0 | D133: pcs. | E133: 0 | F133: pcs. | G133: 0 | H133: pcs. | I133: 0 | J133: pcs. | K133: 0 | L133: pcs. | M133: 0 | N133: pcs. | O133: 0 | P133: pcs. | Q133: 0 | R133: pcs. | U133: 1 | V133: 1 | W133: 0 | X133: 1 | Y133: 1 | Z133: 0 | AA133: 1 | AB133: 1 | AC133: 0 | AD133: 0 | AE133: 0 | AF133: FDCL221 - Line isolator
B134: FDCL221-M - Multi line isolator | C134: 0 | D134: pcs. | E134: 0 | F134: pcs. | G134: 0 | H134: pcs. | I134: 0 | J134: pcs. | K134: 0 | L134: pcs. | M134: 0 | N134: pcs. | O134: 0 | P134: pcs. | Q134: 0 | R134: pcs. | U134: 9 | V134: 9 | W134: 0 | X134: 9 | Y134: 9 | Z134: 0 | AA134: 9 | AB134: 9 | AC134: 0 | AD134: 0 | AE134: 0 | AF134: FDCL221-M - Multi line isolator
B135: FDCI723 - Zone module, ext. powered (1 collective line) | C135: 0 | D135: pcs. | E135: 0 | F135: pcs. | G135: 0 | H135: pcs. | I135: 0 | J135: pcs. | K135: 0 | L135: pcs. | M135: 0 | N135: pcs. | O135: 0 | P135: pcs. | Q135: 0 | R135: pcs. | U135: 3 | V135: 3 | W135: 0 | X135: 3 | Y135: 3 | Z135: 0 | AA135: 1 | AB135: 1 | AC135: 0 | AD135: 0 | AE135: 0 | AF135: FDCI723 - Zone module, ext. powered (1 collective line)
B136: FDCI361 - Input module | C136: 0 | D136: pcs. | E136: 0 | F136: pcs. | G136: 0 | H136: pcs. | I136: 0 | J136: pcs. | K136: 0 | L136: pcs. | M136: 0 | N136: pcs. | O136: 0 | P136: pcs. | Q136: 0 | R136: pcs. | U136: 2 | V136: 2 | W136: 0 | X136: 2 | Y136: 2 | Z136: 0 | AA136: 1 | AB136: 1 | AC136: 0 | AD136: 0 | AE136: 0 | AF136: =B136 -> FDCI361 - Input module
B137: FDCIO361 - Input/Output module | C137: 0 | D137: pcs. | E137: 0 | F137: pcs. | G137: 0 | H137: pcs. | I137: 0 | J137: pcs. | K137: 0 | L137: pcs. | M137: 0 | N137: pcs. | O137: 0 | P137: pcs. | Q137: 0 | R137: pcs. | U137: 2 | V137: 2 | W137: 0 | X137: 2 | Y137: 2 | Z137: 0 | AA137: 1 | AB137: 1 | AC137: 0 | AD137: 0 | AE137: 0 | AF137: FDCIO361 - Input/Output module
AF138: 0
AF139: 0
AF140: 0
AF141: 0
AF142: 0
AF143: 0
AF144: 0
AF145: 0
B146: Radio devices | AF146: Radio devices
AF152: =B152 -> 0
AF153: 0
AF154: 0
AF155: 0
AF156: 0
AF157: 0
AF158: 0
AF159: 0
AF160: 0
AF161: 0
B162: Integrated modules | AF162: Integrated modules
AF165: 0
AF166: 0
AF167: 0
AF168: 0
AF169: 0
AF170: 0
AF171: 0
AF172: 0
AF173: 0
AF174: 0
B175: Alarm devices - Sound | AF175: Alarm devices - Sound
B176: FDS221-R, FDS221-W - Alarm sounder red or white housing, Volume High | C176: 0 | D176: pcs. | E176: 0 | F176: pcs. | G176: 0 | H176: pcs. | I176: 0 | J176: pcs. | K176: 0 | L176: pcs. | M176: 0 | N176: pcs. | O176: 0 | P176: pcs. | Q176: 0 | R176: pcs. | U176: =V176+W176 -> 1 | V176: 1 | W176: 0 | X176: =Y176+Z176 -> 15 | Y176: 15 | Z176: 0 | AA176: 1 | AB176: 1 | AC176: 0 | AD176: 0 | AE176: 0 | AF176: FDS221-R, FDS221-W - Alarm sounder red or white housing, Volume High
B177: FDS221-R, FDS221-W - Alarm sounder red or white housing, Volume Medium | C177: 0 | D177: pcs. | E177: 0 | F177: pcs. | G177: 0 | H177: pcs. | I177: 0 | J177: pcs. | K177: 0 | L177: pcs. | M177: 0 | N177: pcs. | O177: 0 | P177: pcs. | Q177: 0 | R177: pcs. | U177: 1 | V177: 1 | W177: 0 | X177: 10 | Y177: 10 | Z177: 0 | AA177: 1 | AB177: 1 | AC177: 0 | AD177: 0 | AE177: 0 | AF177: FDS221-R, FDS221-W - Alarm sounder red or white housing, Volume Medium
B178: FDS221-R, FDS221-W - Alarm sounder red or white housing, Volume Low | C178: 0 | D178: pcs. | E178: 0 | F178: pcs. | G178: 0 | H178: pcs. | I178: 0 | J178: pcs. | K178: 0 | L178: pcs. | M178: 0 | N178: pcs. | O178: 0 | P178: pcs. | Q178: 0 | R178: pcs. | U178: 1 | V178: 1 | W178: 0 | X178: 5 | Y178: 5 | Z178: 0 | AA178: 1 | AB178: 1 | AC178: 0 | AD178: 0 | AE178: 0 | AF178: FDS221-R, FDS221-W - Alarm sounder red or white housing, Volume Low
B179: DBS720 - Sounder base, Volume High | C179: 0 | D179: pcs. | E179: 0 | F179: pcs. | G179: 0 | H179: pcs. | I179: 0 | J179: pcs. | K179: 0 | L179: pcs. | M179: 0 | N179: pcs. | O179: 0 | P179: pcs. | Q179: 0 | R179: pcs. | U179: 0.5 | V179: 0.5 | W179: 0 | X179: 5 | Y179: 5 | Z179: 0 | AA179: 0 | AB179: 0 | AC179: 0 | AD179: 0 | AE179: 0 | AF179: DBS720 - Sounder base, Volume High
B180: DBS720 - Sounder base, Volume Medium | C180: 0 | D180: pcs. | E180: 0 | F180: pcs. | G180: 0 | H180: pcs. | I180: 0 | J180: pcs. | K180: 0 | L180: pcs. | M180: 0 | N180: pcs. | O180: 0 | P180: pcs. | Q180: 0 | R180: pcs. | U180: 0.5 | V180: 0.5 | W180: 0 | X180: 5 | Y180: 5 | Z180: 0 | AA180: 0 | AB180: 0 | AC180: 0 | AD180: 0 | AE180: 0 | AF180: DBS720 - Sounder base, Volume Medium
B181: DBS721 - Sounder interbase, Volume High | C181: 0 | D181: pcs. | E181: 0 | F181: pcs. | G181: 0 | H181: pcs. | I181: 0 | J181: pcs. | K181: 0 | L181: pcs. | M181: 0 | N181: pcs. | O181: 0 | P181: pcs. | Q181: 0 | R181: pcs. | U181: 1 | V181: 1 | W181: 0 | X181: 15 | Y181: 15 | Z181: 0 | AA181: 1 | AB181: 1 | AC181: 0 | AD181: 0 | AE181: 0 | AF181: DBS721 - Sounder interbase, Volume High
B182: DBS721 - Sounder interbase, Volume Medium | C182: 0 | D182: pcs. | E182: 0 | F182: pcs. | G182: 0 | H182: pcs. | I182: 0 | J182: pcs. | K182: 0 | L182: pcs. | M182: 0 | N182: pcs. | O182: 0 | P182: pcs. | Q182: 0 | R182: pcs. | U182: 1 | V182: 1 | W182: 0 | X182: 10 | Y182: 10 | Z182: 0 | AA182: 1 | AB182: 1 | AC182: 0 | AD182: 0 | AE182: 0 | AF182: DBS721 - Sounder interbase, Volume Medium
B183: DBS721 - Sounder interbase, Volume Low | C183: 0 | D183: pcs. | E183: 0 | F183: pcs. | G183: 0 | H183: pcs. | I183: 0 | J183: pcs. | K183: 0 | L183: pcs. | M183: 0 | N183: pcs. | O183: 0 | P183: pcs. | Q183: 0 | R183: pcs. | U183: 1 | V183: 1 | W183: 0 | X183: 5 | Y183: 5 | Z183: 0 | AA183: 1 | AB183: 1 | AC183: 0 | AD183: 0 | AE183: 0 | AF183: DBS721 - Sounder interbase, Volume Low
B184: FDS224-R, FDS224-W - Sounder red or white housing, Volume High | C184: 0 | D184: pcs. | E184: 0 | F184: pcs. | G184: 0 | H184: pcs. | I184: 0 | J184: pcs. | K184: 0 | L184: pcs. | M184: 0 | N184: pcs. | O184: 0 | P184: pcs. | Q184: 0 | R184: pcs. | U184: 1 | V184: 1 | W184: 0 | X184: 15 | Y184: 15 | Z184: 0 | AA184: 1 | AB184: 1 | AC184: 0 | AD184: 1 | AE184: 0 | AF184: FDS224-R, FDS224-W - Sounder red or white housing, Volume High
B185: FDS224-R, FDS224-W - Sounder red or white housing, Volume Medium | C185: 0 | D185: pcs. | E185: 0 | F185: pcs. | G185: 0 | H185: pcs. | I185: 0 | J185: pcs. | K185: 0 | L185: pcs. | M185: 0 | N185: pcs. | O185: 0 | P185: pcs. | Q185: 0 | R185: pcs. | U185: 1 | V185: 1 | W185: 0 | X185: 8 | Y185: 8 | Z185: 0 | AA185: 1 | AB185: 1 | AC185: 0 | AD185: 1 | AE185: 0 | AF185: FDS224-R, FDS224-W - Sounder red or white housing, Volume Medium
B186: FDS224-R, FDS224-W - Sounder red or white housing, Volume Low | C186: 0 | D186: pcs. | E186: 0 | F186: pcs. | G186: 0 | H186: pcs. | I186: 0 | J186: pcs. | K186: 0 | L186: pcs. | M186: 0 | N186: pcs. | O186: 0 | P186: pcs. | Q186: 0 | R186: pcs. | U186: 1 | V186: 1 | W186: 0 | X186: 6 | Y186: 6 | Z186: 0 | AA186: 1 | AB186: 1 | AC186: 0 | AD186: 1 | AE186: 0 | AF186: FDS224-R, FDS224-W - Sounder red or white housing, Volume Low
B187: FDS364-R, FDS364-W - Sounder red or white housing, Volume High | C187: 0 | D187: pcs. | E187: 0 | F187: pcs. | G187: 0 | H187: pcs. | I187: 0 | J187: pcs. | K187: 0 | L187: pcs. | M187: 0 | N187: pcs. | O187: 0 | P187: pcs. | Q187: 0 | R187: pcs. | U187: 1 | V187: 1 | W187: 0 | X187: 15 | Y187: 15 | Z187: 0 | AA187: 1 | AB187: 1 | AC187: 0 | AD187: 1 | AE187: 0 | AF187: FDS364-R, FDS364-W - Sounder red or white housing, Volume High
AF188: 0
AF189: 0
AF190: 0
AF191: 0
AF192: 0
AF193: 0
AF194: 0
AF195: 0
B196: Alarm devices - Sound and Voice | AF196: Alarm devices - Sound and Voice
B197: FDS225-R, FDS225-W - Voice sounder red or white housing, Volume High | C197: 0 | D197: pcs. | E197: 0 | F197: pcs. | G197: 0 | H197: pcs. | I197: 0 | J197: pcs. | K197: 0 | L197: pcs. | M197: 0 | N197: pcs. | O197: 0 | P197: pcs. | Q197: 0 | R197: pcs. | U197: =V197+W197 -> 1 | V197: 1 | W197: 0 | X197: =Y197+Z197 -> 18 | Y197: 18 | Z197: 0 | AA197: 1 | AB197: 1 | AC197: 0 | AD197: 1 | AE197: 0 | AF197: FDS225-R, FDS225-W - Voice sounder red or white housing, Volume High
B198: FDS225-R, FDS225-W - Voice sounder red or white housing, Volume Medium | C198: 0 | D198: pcs. | E198: 0 | F198: pcs. | G198: 0 | H198: pcs. | I198: 0 | J198: pcs. | K198: 0 | L198: pcs. | M198: 0 | N198: pcs. | O198: 0 | P198: pcs. | Q198: 0 | R198: pcs. | U198: 1 | V198: 1 | W198: 0 | X198: 13 | Y198: 13 | Z198: 0 | AA198: 1 | AB198: 1 | AC198: 0 | AD198: 1 | AE198: 0 | AF198: FDS225-R, FDS225-W - Voice sounder red or white housing, Volume Medium
B199: FDS225-R, FDS225-W - Voice sounder red or white housing, Volume Low | C199: 0 | D199: pcs. | E199: 0 | F199: pcs. | G199: 0 | H199: pcs. | I199: 0 | J199: pcs. | K199: 0 | L199: pcs. | M199: 0 | N199: pcs. | O199: 0 | P199: pcs. | Q199: 0 | R199: pcs. | U199: 1 | V199: 1 | W199: 0 | X199: 12 | Y199: 12 | Z199: 0 | AA199: 1 | AB199: 1 | AC199: 0 | AD199: 1 | AE199: 0 | AF199: FDS225-R, FDS225-W - Voice sounder red or white housing, Volume Low
B200: FDS226, FDS227 - Sounder used without beacon functionality, Volume High | C200: 0 | D200: pcs. | E200: 0 | F200: pcs. | G200: 0 | H200: pcs. | I200: 0 | J200: pcs. | K200: 0 | L200: pcs. | M200: 0 | N200: pcs. | O200: 0 | P200: pcs. | Q200: 0 | R200: pcs. | U200: 1.25 | V200: 1.25 | W200: 0 | X200: 18 | Y200: 18 | Z200: 0 | AA200: 1 | AB200: 1 | AC200: 0 | AD200: 1 | AE200: 0 | AF200: FDS226, FDS227 - Sounder used without beacon functionality, Volume High
B201: FDS226, FDS227 - Sounder used without beacon functionality, Volume Medium | C201: 0 | D201: pcs. | E201: 0 | F201: pcs. | G201: 0 | H201: pcs. | I201: 0 | J201: pcs. | K201: 0 | L201: pcs. | M201: 0 | N201: pcs. | O201: 0 | P201: pcs. | Q201: 0 | R201: pcs. | U201: 1.25 | V201: 1.25 | W201: 0 | X201: 13 | Y201: 13 | Z201: 0 | AA201: 1 | AB201: 1 | AC201: 0 | AD201: 1 | AE201: 0 | AF201: FDS226, FDS227 - Sounder used without beacon functionality, Volume Medium
B202: FDS226, FDS227 - Sounder used without beacon functionality, Volume Low | C202: 0 | D202: pcs. | E202: 0 | F202: pcs. | G202: 0 | H202: pcs. | I202: 0 | J202: pcs. | K202: 0 | L202: pcs. | M202: 0 | N202: pcs. | O202: 0 | P202: pcs. | Q202: 0 | R202: pcs. | U202: 1.25 | V202: 1.25 | W202: 0 | X202: 12 | Y202: 12 | Z202: 0 | AA202: 1 | AB202: 1 | AC202: 0 | AD202: 1 | AE202: 0 | AF202: FDS226, FDS227 - Sounder used without beacon functionality, Volume Low
AF203: 0
AF204: 0
AF205: 0
AF206: 0
AF207: 0
AF208: 0
AF209: 0
AF210: 0
AF211: 0
AF212: =B212 -> 0
B213: Alarm devices - Sound and Light (Beacon) Volume settings is assumed as "high" for calculation. | AF213: Alarm devices - Sound and Light (Beacon) Volume settings is assumed as "high" for calculation.
B214: FDS229-A, FDS229-R - Alarm sounder and beacon, amber or red, Light and Volume High | C214: 0 | D214: pcs. | E214: 0 | F214: pcs. | G214: 0 | H214: pcs. | I214: 0 | J214: pcs. | K214: 0 | L214: pcs. | M214: 0 | N214: pcs. | O214: 0 | P214: pcs. | Q214: 0 | R214: pcs. | U214: =V214+W214 -> 1 | V214: 1 | W214: 0 | X214: =Y214+Z214 -> 30 | Y214: 30 | Z214: 0 | AA214: 1 | AB214: 1 | AC214: 0 | AD214: 0 | AE214: 0 | AF214: FDS229-A, FDS229-R - Alarm sounder and beacon, amber or red, Light and Volume High
B215: FDS226 - Sounder beacon, Red Light, High Intensity | C215: 0 | D215: pcs. | E215: 0 | F215: pcs. | G215: 0 | H215: pcs. | I215: 0 | J215: pcs. | K215: 0 | L215: pcs. | M215: 0 | N215: pcs. | O215: 0 | P215: pcs. | Q215: 0 | R215: pcs. | U215: 1.25 | V215: 1.25 | W215: 0 | X215: 111 | Y215: 22 | Z215: 89 | AA215: 1 | AB215: 1 | AC215: 0 | AD215: 1 | AE215: 1 | AF215: FDS226 - Sounder beacon, Red Light, High Intensity
B216: FDS226 - Sounder beacon, Red Light, Medium Intensity | C216: 0 | D216: pcs. | E216: 0 | F216: pcs. | G216: 0 | H216: pcs. | I216: 0 | J216: pcs. | K216: 0 | L216: pcs. | M216: 0 | N216: pcs. | O216: 0 | P216: pcs. | Q216: 0 | R216: pcs. | U216: 1.25 | V216: 1.25 | W216: 0 | X216: 80 | Y216: 22 | Z216: 58 | AA216: 1 | AB216: 1 | AC216: 0 | AD216: 1 | AE216: 1 | AF216: FDS226 - Sounder beacon, Red Light, Medium Intensity
B217: FDS226 - Sounder beacon, Red Light, Low Intensity | C217: 0 | D217: pcs. | E217: 0 | F217: pcs. | G217: 0 | H217: pcs. | I217: 0 | J217: pcs. | K217: 0 | L217: pcs. | M217: 0 | N217: pcs. | O217: 0 | P217: pcs. | Q217: 0 | R217: pcs. | U217: 1.25 | V217: 1.25 | W217: 0 | X217: 64 | Y217: 22 | Z217: 42 | AA217: 1 | AB217: 1 | AC217: 0 | AD217: 1 | AE217: 1 | AF217: FDS226 - Sounder beacon, Red Light, Low Intensity
B218: FDS226 - Sounder beacon, Red Light, Indicator Mode | C218: 0 | D218: pcs. | E218: 0 | F218: pcs. | G218: 0 | H218: pcs. | I218: 0 | J218: pcs. | K218: 0 | L218: pcs. | M218: 0 | N218: pcs. | O218: 0 | P218: pcs. | Q218: 0 | R218: pcs. | U218: 1.25 | V218: 1.25 | W218: 0 | X218: 30 | Y218: 22 | Z218: 8 | AA218: 1 | AB218: 1 | AC218: 0 | AD218: 1 | AE218: 0 | AF218: FDS226 - Sounder beacon, Red Light, Indicator Mode
B219: FDS226 - Sounder beacon, White Light, High Intensity | C219: 0 | D219: pcs. | E219: 0 | F219: pcs. | G219: 0 | H219: pcs. | I219: 0 | J219: pcs. | K219: 0 | L219: pcs. | M219: 0 | N219: pcs. | O219: 0 | P219: pcs. | Q219: 0 | R219: pcs. | U219: 1.25 | V219: 1.25 | W219: 0 | X219: 108 | Y219: 22 | Z219: 86 | AA219: 1 | AB219: 1 | AC219: 0 | AD219: 1 | AE219: 1 | AF219: FDS226 - Sounder beacon, White Light, High Intensity
B220: FDS226 - Sounder beacon, White Light, Medium Intensity | C220: 0 | D220: pcs. | E220: 0 | F220: pcs. | G220: 0 | H220: pcs. | I220: 0 | J220: pcs. | K220: 0 | L220: pcs. | M220: 0 | N220: pcs. | O220: 0 | P220: pcs. | Q220: 0 | R220: pcs. | U220: 1.25 | V220: 1.25 | W220: 0 | X220: 62 | Y220: 22 | Z220: 40 | AA220: 1 | AB220: 1 | AC220: 0 | AD220: 1 | AE220: 1 | AF220: FDS226 - Sounder beacon, White Light, Medium Intensity
B221: FDS226 - Sounder beacon, White Light, Low Intensity | C221: 0 | D221: pcs. | E221: 0 | F221: pcs. | G221: 0 | H221: pcs. | I221: 0 | J221: pcs. | K221: 0 | L221: pcs. | M221: 0 | N221: pcs. | O221: 0 | P221: pcs. | Q221: 0 | R221: pcs. | U221: 1.25 | V221: 1.25 | W221: 0 | X221: 51 | Y221: 22 | Z221: 29 | AA221: 1 | AB221: 1 | AC221: 0 | AD221: 1 | AE221: 1 | AF221: FDS226 - Sounder beacon, White Light, Low Intensity
B222: FDS226 - Sounder beacon, White Light, Indicator Mode | C222: 0 | D222: pcs. | E222: 0 | F222: pcs. | G222: 0 | H222: pcs. | I222: 0 | J222: pcs. | K222: 0 | L222: pcs. | M222: 0 | N222: pcs. | O222: 0 | P222: pcs. | Q222: 0 | R222: pcs. | U222: 1.25 | V222: 1.25 | W222: 0 | X222: 30 | Y222: 22 | Z222: 8 | AA222: 1 | AB222: 1 | AC222: 0 | AD222: 1 | AE222: 0 | AF222: FDS226 - Sounder beacon, White Light, Indicator Mode
B223: FDSB226 - Sounder beacon base, Red Light, High Intensity | C223: 0 | D223: pcs. | E223: 0 | F223: pcs. | G223: 0 | H223: pcs. | I223: 0 | J223: pcs. | K223: 0 | L223: pcs. | M223: 0 | N223: pcs. | O223: 0 | P223: pcs. | Q223: 0 | R223: pcs. | U223: 1.25 | V223: 1.25 | W223: 0 | X223: 116 | Y223: 23 | Z223: 93 | AA223: 1 | AB223: 1 | AC223: 0 | AD223: 1 | AE223: 1 | AF223: FDSB226 - Sounder beacon base, Red Light, High Intensity
B224: FDSB226 - Sounder beacon base, Red Light, Medium Intensity | C224: 0 | D224: pcs. | E224: 0 | F224: pcs. | G224: 0 | H224: pcs. | I224: 0 | J224: pcs. | K224: 0 | L224: pcs. | M224: 0 | N224: pcs. | O224: 0 | P224: pcs. | Q224: 0 | R224: pcs. | U224: 1.25 | V224: 1.25 | W224: 0 | X224: 88 | Y224: 23 | Z224: 65 | AA224: 1 | AB224: 1 | AC224: 0 | AD224: 1 | AE224: 1 | AF224: FDSB226 - Sounder beacon base, Red Light, Medium Intensity
B225: FDSB226 - Sounder beacon base, Red Light, Low Intensity | C225: 0 | D225: pcs. | E225: 0 | F225: pcs. | G225: 0 | H225: pcs. | I225: 0 | J225: pcs. | K225: 0 | L225: pcs. | M225: 0 | N225: pcs. | O225: 0 | P225: pcs. | Q225: 0 | R225: pcs. | U225: 1.25 | V225: 1.25 | W225: 0 | X225: 60 | Y225: 23 | Z225: 37 | AA225: 1 | AB225: 1 | AC225: 0 | AD225: 1 | AE225: 1 | AF225: FDSB226 - Sounder beacon base, Red Light, Low Intensity
B226: FDSB226 - Sounder beacon base, Red Light, Indicator Mode | C226: 0 | D226: pcs. | E226: 0 | F226: pcs. | G226: 0 | H226: pcs. | I226: 0 | J226: pcs. | K226: 0 | L226: pcs. | M226: 0 | N226: pcs. | O226: 0 | P226: pcs. | Q226: 0 | R226: pcs. | U226: 1.25 | V226: 1.25 | W226: 0 | X226: 31 | Y226: 23 | Z226: 8 | AA226: 1 | AB226: 1 | AC226: 0 | AD226: 1 | AE226: 0 | AF226: FDSB226 - Sounder beacon base, Red Light, Indicator Mode
B227: FDSB226 - Sounder beacon base, White Light, High Intensity | C227: 0 | D227: pcs. | E227: 0 | F227: pcs. | G227: 0 | H227: pcs. | I227: 0 | J227: pcs. | K227: 0 | L227: pcs. | M227: 0 | N227: pcs. | O227: 0 | P227: pcs. | Q227: 0 | R227: pcs. | U227: 1.25 | V227: 1.25 | W227: 0 | X227: 132 | Y227: 23 | Z227: 109 | AA227: 1 | AB227: 1 | AC227: 0 | AD227: 1 | AE227: 1 | AF227: FDSB226 - Sounder beacon base, White Light, High Intensity
B228: FDSB226 - Sounder beacon base, White Light, Medium Intensity | C228: 0 | D228: pcs. | E228: 0 | F228: pcs. | G228: 0 | H228: pcs. | I228: 0 | J228: pcs. | K228: 0 | L228: pcs. | M228: 0 | N228: pcs. | O228: 0 | P228: pcs. | Q228: 0 | R228: pcs. | U228: 1.25 | V228: 1.25 | W228: 0 | X228: 82 | Y228: 23 | Z228: 59 | AA228: 1 | AB228: 1 | AC228: 0 | AD228: 1 | AE228: 1 | AF228: FDSB226 - Sounder beacon base, White Light, Medium Intensity
B229: FDSB226 - Sounder beacon base, White Light, Low Intensity | C229: 0 | D229: pcs. | E229: 0 | F229: pcs. | G229: 0 | H229: pcs. | I229: 0 | J229: pcs. | K229: 0 | L229: pcs. | M229: 0 | N229: pcs. | O229: 0 | P229: pcs. | Q229: 0 | R229: pcs. | U229: 1.25 | V229: 1.25 | W229: 0 | X229: 49 | Y229: 23 | Z229: 26 | AA229: 1 | AB229: 1 | AC229: 0 | AD229: 1 | AE229: 1 | AF229: FDSB226 - Sounder beacon base, White Light, Low Intensity
B230: FDSB226 - Sounder beacon base, White Light, Indicator Mode | C230: 0 | D230: pcs. | E230: 0 | F230: pcs. | G230: 0 | H230: pcs. | I230: 0 | J230: pcs. | K230: 0 | L230: pcs. | M230: 0 | N230: pcs. | O230: 0 | P230: pcs. | Q230: 0 | R230: pcs. | U230: 1.25 | V230: 1.25 | W230: 0 | X230: 31 | Y230: 23 | Z230: 8 | AA230: 1 | AB230: 1 | AC230: 0 | AD230: 1 | AE230: 0 | AF230: FDSB226 - Sounder beacon base, White Light, Indicator Mode
B231: DBS728 - Sounder beacon interbase, Sound and Light High | C231: 0 | D231: pcs. | E231: 0 | F231: pcs. | G231: 0 | H231: pcs. | I231: 0 | J231: pcs. | K231: 0 | L231: pcs. | M231: 0 | N231: pcs. | O231: 0 | P231: pcs. | Q231: 0 | R231: pcs. | U231: 1 | V231: 1 | W231: 0 | X231: 40 | Y231: 40 | Z231: 0 | AA231: 1 | AB231: 1 | AC231: 0 | AD231: 0 | AE231: 0 | AF231: DBS728 - Sounder beacon interbase, Sound and Light High
B232: DBS729 - Sounder beacon interbase, Sound and Light High | C232: 0 | D232: pcs. | E232: 0 | F232: pcs. | G232: 0 | H232: pcs. | I232: 0 | J232: pcs. | K232: 0 | L232: pcs. | M232: 0 | N232: pcs. | O232: 0 | P232: pcs. | Q232: 0 | R232: pcs. | U232: 1 | V232: 1 | W232: 0 | X232: 41 | Y232: 41 | Z232: 0 | AA232: 1 | AB232: 1 | AC232: 0 | AD232: 0 | AE232: 0 | AF232: DBS729 - Sounder beacon interbase, Sound and Light High
B233: FDS366-RR Sounder used with beacon functionality, Red Light, Medium Intensity | C233: 0 | D233: pcs. | E233: 0 | F233: pcs. | G233: 0 | H233: pcs. | I233: 0 | J233: pcs. | K233: 0 | L233: pcs. | M233: 0 | N233: pcs. | O233: 0 | P233: pcs. | Q233: 0 | R233: pcs. | U233: 1.25 | V233: 1.25 | W233: 0 | X233: 80 | Y233: 22 | Z233: 58 | AA233: 1 | AB233: 1 | AC233: 0 | AD233: 1 | AE233: 1 | AF233: FDS366-RR Sounder used with beacon functionality, Red Light, Medium Intensity
B234: FDS366-RR Sounder used with beacon functionality, Red Light Indicator Mode | C234: 0 | D234: pcs. | E234: 0 | F234: pcs. | G234: 0 | H234: pcs. | I234: 0 | J234: pcs. | K234: 0 | L234: pcs. | M234: 0 | N234: pcs. | O234: 0 | P234: pcs. | Q234: 0 | R234: pcs. | U234: 1.25 | V234: 1.25 | W234: 0 | X234: 30 | Y234: 22 | Z234: 8 | AA234: 1 | AB234: 1 | AC234: 0 | AD234: 1 | AE234: 0 | AF234: FDS366-RR Sounder used with beacon functionality, Red Light Indicator Mode
B235: FDS366-RW Sounder used with beacon functionality, White Light, Medium Intensity | C235: 0 | D235: pcs. | E235: 0 | F235: pcs. | G235: 0 | H235: pcs. | I235: 0 | J235: pcs. | K235: 0 | L235: pcs. | M235: 0 | N235: pcs. | O235: 0 | P235: pcs. | Q235: 0 | R235: pcs. | U235: 1.25 | V235: 1.25 | W235: 0 | X235: 62 | Y235: 22 | Z235: 40 | AA235: 1 | AB235: 1 | AC235: 0 | AD235: 1 | AE235: 1 | AF235: FDS366-RW Sounder used with beacon functionality, White Light, Medium Intensity
B236: FDS366-RW Sounder used with beacon functionality, White Light Indicator Mode | C236: 0 | D236: pcs. | E236: 0 | F236: pcs. | G236: 0 | H236: pcs. | I236: 0 | J236: pcs. | K236: 0 | L236: pcs. | M236: 0 | N236: pcs. | O236: 0 | P236: pcs. | Q236: 0 | R236: pcs. | U236: 1.25 | V236: 1.25 | W236: 0 | X236: 30 | Y236: 22 | Z236: 8 | AA236: 1 | AB236: 1 | AC236: 0 | AD236: 1 | AE236: 0 | AF236: FDS366-RW Sounder used with beacon functionality, White Light Indicator Mode
... 207 more rows

Sheet FDnet_Constants (hidden)
A1: General characteristic values
A3: Max. cablelength resistor | B3: maxLengthR | C3: 3300 | D3: m | E3: 240 Ohm = 72 Ohm/km * 3300m (MP1.1 only 2500m)
A4: Max. cablelength capacity | B4: maxLengthC | C4: 5000 | D4: m | E4: (no restriction, value could be higher)
A5: Max. Adressindex per Stub | B5: MaxAKStub | C5: 64 | D5: Device
A6: Max. Adressindex per Loop | B6: MaxAKLoop | C6: 126 | D6: Device | E6: (restriction trough startup time)
A7: Max. Adressindex per Module | B7: MaxAKModule | C7: 252 | D7: Device
A8: Max. current per Module | B8: Imax | C8: 0.5 | D8: A | E8: (distribution free between Loop and Stub)
A9: Max. current per Module | B9: ImaxStation | C9: 0.883 | D9: A | E9: (@ 24V, inkl. Wirkungsgrad DC/DC)
A10: Max. leakcurrent per Loop/Stub | B10: Ileak | C10: 0.008 | D10: A
A11: Max. leakcurrent per Module | B11: IleakModule | C11: 0.022 | D11: A
A12: Min. line voltage | B12: Vline_min | C12: 31 | D12: V
A13: Min. detector voltage | B13: Vdet_min | C13: 12 | D13: V
A14: Min. beacon voltage AD18 | B14: Vdet_min_AD18 | C14: 16 | D14: V
A15: Nom. Answer voltage | B15: Vans | C15: 6 | D15: V
A16: Detector Current | B16: Idet | C16: 0.00025 | D16: A
A17: Operation indicator factor | B17: OperationIndicatorFactor | C17: 0.72 | E17: Current for Operation indicator ~180uA -> 180uA/250uA
A18: Internal alarm indicator current | B18: I_Iai | C18: 0.0002 | D18: A
A19: Amount of Internal alarm indicators | B19: N_Iai | C19: 10
A20: External alarm indicator current | B20: I_Eai | C20: 0.0002 | D20: A
A21: Amount of External alarm indicators | B21: N_Eai | C21: 10
A22: Steady on Internal alarm indicator current | B22: I_IaiSteadyOn | C22: 0.0012 | D22: A | E22: 3ms/25ms*10mA (LED is every 25ms for 3ms active, current 10mA)
A23: Amount of steadyOn internal alarm indicators (GB) | B23: N_IaiSteadyOn_GB | C23: 32 | E23: GB standard demand 32 devices on alarm
A24: Amount of steadyOn internal alarm indicators (operation indicator) | B24: N_IaiSteadyOn_OI | C24: 10 | E24: max. 10 devices on alarm
A25: Duty Cycle | B25: DC | C25: 0.75
A26: Max. answer current resistor | B26: Rans | C26: 250 | D26: Ohm | E26: 250 Ohm = (5.5V / 15mA) - 120 Ohm / resistor with Detectors FET
A27: Max. cable resistor | B27: Rcbl | C27: 240 | D27: Ohm | E27: 240 Ohm = 72 Ohm/km * 3300m (MP1.1 only 180 Ohm)
A28: Max. FET resistor | B28: Rdet | C28: 0.2 | D28: Ohm
A29: Max. FET resistor for low Typ | B29: Rdet_low | C29: 0.1 | D29: Ohm
A30: Increase capacity from (Rc) | B30: IncCapRc | C30: 50 | D30: Ohm
A31: Capacity >Rc | B31: CmaxGreatRc | C31: 500 | D31: nF
A32: Capacity <Rc | B32: CmaxSmalRc | C32: 750 | D32: nF
A33: Max. capacity per Module | B33: MaxC | C33: 1000 | D33: nF
A34: Max. numbers of wireless device per gateway | B34: MaxRadioDevice | C34: 30 | D34: Device
A35: Max. numbers of wireless device per gateway SWiNG | B35: MaxSwingDevice | C35: 30 | D35: Device
A36: Maximum number of FDCIO per Line Card | B36: MaxFDCIO_Device | C36: 50 | D36: Device
A37: Maximum number of FT2001 per Line Card | B37: MaxFT2001_Device | C37: 20 | D37: Device
A38: Maximum number of FRT / FRD per Line Card | B38: MaxFRT_FRD_Device | C38: 8 | D38: Device
A41: P2 Ex-Stub characteristic values
A42: Max. leakcurrent per Ex-Stub | B42: IleakEx | C42: 0.0043 | D42: A | E42: Ex-Stub rules and calculation basis
A43: Min. detector voltage with FDCL-Ex | B43: VdetEx_min | C43: 13 | D43: V | E43: - FDCL221-Ex together with device load is added to line
A44: Max. ex line cable res. (incl. Barriere) | B44: RlEx | C44: 440 | D44: Ohm | E44: - from the load a minimum FDCL22-1Ex input voltage is resulting
A45: Max. loop cable resistance Ex | B45: RansEx | C45: 190 | D45: Ohm | E45: - line parameters of Ex-Line need not be specified,
A46: Ex-transformer current ratio | B46: ConvIEx | C46: 1.25 | E46: worst case values are considered (50 Ohm, 82nF)
A47: Ex-transformer voltage ratio | B47: ConvUEx | C47: 1.25 | E47: - max. line resistance before FDCL221-Ex is 190 Ohm
A48: Ex-voltagedrop_trafo | B48: VdropEx | C48: 1.4 | D48: V | E48: - up to 2 FDCL221-Ex per Loop are possible, only 1 on a stub
A49: Capacitive Load FDCL221-Ex | B49: C_FDCL | C49: 200 | D49: nF | E49: - FDCL221-Ex adds 200nF capacitive load to the line
A50: Upper Limit for minimal FDCL221-Ex input voltage | B50: V_FDCL_ul | C50: 19 | D50: V | E50: - FDCL221-Ex minimum input voltage must be below 19V (output clamp)
A51: Max. number of detectors in Alarm on one FDCL221-Ex | B51: N_AI_Ex | C51: 3 | E51: - 10% of allowed devices on a stub; accepted by PM for CN
A52: Max. number of detectors at adapter | B52: MaxExDevice | C52: 20
A54: Formula for determination of minimal Fdnet line voltage with a connected Fdnet Ex-stub:
E55: Vline_min may not be larger than V_FDCL_ul, otherwise
E56: the input is clipped if to avoid unsafe voltages at the Ex-line side
C363: TRUE
C365: TRUE
C371: 0
C372: 0
C421: TRUE

Sheet Panel_comp (hidden)
A1: Abbreviations
A2: open, value tbd by R&D
A3: changeable field
A4: Data from input-output sheet
A5: calculation
A6: Measurement from R&D
A8: General characteristic values
A14: Max. Total Current of All Sounders | C14: 0.500 | D14: A | E14: (@ 24V)
A15: Max. Current per Sounder Line | C15: 0.500 | D15: A | E15: (@ 24V)
A16: Max. Current of Auxiliary Power | C16: 0.200 | D16: A | E16: (@ 24V)
A17: Max. Current per Open Collector | C17: 0.100 | D17: A | E17: (@ 24V)
A18: Max. RSxxx Modules | C18: 1 | D18: pcs.
A19: Max. I2C participants | C19: 16 | D19: pcs.
A20: Max. degrade mode participants | C20: 32 | D20: pcs.
A21: Max. Current of Each Output - Internal power | C21: 1.000 | D21: A | E21: (@ 26.1V)
A22: Calculation of current consumption
C24: Load on local voltage, per unit | I24: Quantity | J24: Load on system voltage, total
C25: I norm [A] | D25: I alarm [A] | E25: U [V] | F25: n [%] | G25: P norm [W] | H25: P alarm [W] | I25: Quant. [pcs] | J25: I norm [A] | K25: I alarm [A] | L25: P norm [W] | M25: P alarm [W]
A27: Periphery board - C-NET
A28: Current consumption LC1 | C28: =FC360_Panel!F89 -> 0.039 | D28: =FC360_Panel!H89 -> 0.039 | E28: 24 | F28: =IF(21<E28,IF(E28<30,100%,80%),80%) -> 100% | G28: =C28*E28/F28 -> 0.94 | H28: =D28*E28/F28 -> 0.94 | I28: =IF(OR($C$109=1,$C$109=2,$C$109=3,$C$109=4),1,0) -> 1 | L28: =G28*I28 -> 0.94 | M28: =H28*I28 -> 0.94
A29: Current consumption LC2 | C29: =FC360_Panel!F92 -> 0.039 | D29: =FC360_Panel!H92 -> 0.039 | E29: 24 | F29: =IF(21<E29,IF(E29<30,100%,80%),80%) -> 100% | G29: =C29*E29/F29 -> 0.94 | H29: =D29*E29/F29 -> 0.94 | I29: =IF(OR($C$109=3,$C$109=4),1,0) -> 0 | L29: =G29*I29 -> 0.00 | M29: =H29*I29 -> 0.00
L31: =L$25 -> P norm [W] | M31: =M$25 -> P alarm [W]
A32: Power consumption (Ex. Loop) | L32: =SUM(L$28:L$29) -> 0.936 | M32: =SUM(M$28:M$29) -> 0.936
A34: Card cage
A35: Power consumption card cages 2 (push button "Caculate" for actual value) | L35: 0.000 | M35: 0.000
A36: Power consumption supply1 card cages 5 (push button "Caculate" for actual value) | L36: 0.000 | M36: 0.000
L38: =L$25 -> P norm [W] | M38: =M$25 -> P alarm [W]
A39: Power consumption | L39: =SUM(L$35:L$36) -> 0.000 | M39: =SUM(M$35:M$36) -> 0.000
A41: Periphery board - Input / Output
A42: Sounder Lines | C42: =C$25 -> I norm [A] | D42: I alarm [A] | E42: U [V] | F42: n [%] | G42: P norm [W] | H42: P alarm [W] | I42: Quant. [pcs] | J42: I norm [A] | K42: I alarm [A] | L42: P norm [W] | M42: P alarm [W]
A43: Sounder line 1 (SOUND1) | C43: =FC360_Panel!F100 -> 0.000 | D43: =FC360_Panel!H100 -> 0.000 | E43: 24 | F43: =IF(21<E43,IF(E43<30,100%,80%),80%) -> 100% | G43: =C43*E43/F43 -> 0.00 | H43: =D43*E43/F43 -> 0.00 | I43: 1 | J43: =C43*I43 -> 0.000 | K43: =D43*I43 -> 0.000 | L43: =G43*I43 -> 0.00 | M43: =H43*I43 -> 0.00
A44: Sounder line 2 (SOUND2) | C44: =FC360_Panel!F101 -> 0.000 | D44: =FC360_Panel!H101 -> 0.000 | E44: 24 | F44: =IF(21<E44,IF(E44<30,100%,80%),80%) -> 100% | G44: =C44*E44/F44 -> 0.00 | H44: =D44*E44/F44 -> 0.00 | I44: 1 | J44: =C44*I44 -> 0.000 | K44: =D44*I44 -> 0.000 | L44: =G44*I44 -> 0.00 | M44: =H44*I44 -> 0.00
A47: Alarm & Fault Outputs | C47: =C$25 -> I norm [A] | D47: I alarm [A] | E47: U [V] | F47: n [%] | G47: P norm [W] | H47: P alarm [W] | I47: Quant. [pcs] | J47: I norm [A] | K47: I alarm [A] | L47: P norm [W] | M47: P alarm [W]
A48: Output Alarm supervised (AL_OUT) | C48: =FC360_Panel!F104 -> 0.000 | D48: =FC360_Panel!H104 -> 0.000 | E48: 24 | F48: =IF(21<E48,IF(E48<30,100%,80%),80%) -> 100% | G48: =C48*E48/F48 -> 0.00 | H48: =D48*E48/F48 -> 0.00 | I48: =IF(OR($C$109=1,$C$109=2,$C$109=3,$C$109=4),1,0) -> 1 | J48: =C48*I48 -> 0.000 | K48: =D48*I48 -> 0.000 | L48: =G48*I48 -> 0.00 | M48: =H48*I48 -> 0.00
A49: Output Fault supervised (FAU_OUT) | C49: =FC360_Panel!F105 -> 0.000 | D49: =FC360_Panel!H105 -> 0.000 | E49: 24 | F49: =IF(21<E49,IF(E49<30,100%,80%),80%) -> 100% | G49: =C49*E49/F49 -> 0.00 | H49: =D49*E49/F49 -> 0.00 | I49: =$I$48 -> 1 | J49: =C49*I49 -> 0.000 | K49: =D49*I49 -> 0.000 | L49: =G49*I49 -> 0.00 | M49: =H49*I49 -> 0.00
A52: Auxiliary Power | C52: =C$25 -> I norm [A] | D52: I alarm [A] | E52: U [V] | F52: n [%] | G52: P norm [W] | H52: P alarm [W] | I52: Quant. [pcs] | J52: I norm [A] | K52: I alarm [A] | L52: P norm [W] | M52: P alarm [W]
A53: Total load of auxiliary power | C53: =FC360_Panel!F108 -> 0.000 | D53: =FC360_Panel!H108 -> 0.000 | E53: 24 | F53: =IF(21<E53,IF(E53<30,100%,80%),80%) -> 100% | G53: =C53*E53/F53 -> 0.00 | H53: =D53*E53/F53 -> 0.00 | I53: =IF(OR($C$109=1,$C$109=2,$C$109=3,$C$109=4),1,0) -> 1 | J53: =C53*I53 -> 0.000 | K53: =D53*I53 -> 0.000 | L53: =G53*I53 -> 0.00 | M53: =H53*I53 -> 0.00
A54: Current on configurable I/O (I/Ox) | C54: =FC360_Panel!F109 -> 0.000 | D54: =FC360_Panel!H109 -> 0.000 | E54: 24 | F54: 100% | G54: 0.00 | H54: 0.00 | I54: =$I$53 -> 1 | J54: 0.000 | K54: 0.000 | L54: 0.00 | M54: 0.00
A55: Load for external dialer | C55: =FC360_Panel!F110 -> 0.000 | D55: =FC360_Panel!H110 -> 0.000 | E55: 24 | F55: 100% | G55: 0.00 | H55: 0.00 | I55: =$I$53 -> 1 | J55: 0.000 | K55: 0.000 | L55: 0.00 | M55: 0.00
A56: Load for FDCIO223 | C56: =FC360_Panel!F111 -> 0.000 | D56: =FC360_Panel!H111 -> 0.000 | E56: 24 | F56: 100% | G56: 0.00 | H56: 0.00 | I56: =$I$53 -> 1 | J56: 0.000 | K56: 0.000 | L56: 0.00 | M56: 0.00
A57: Load for FT2040 | C57: =FC360_Panel!F112 -> 0.000 | D57: =FC360_Panel!H112 -> 0.000 | E57: 24 | F57: 100% | G57: 0.00 | H57: 0.00 | I57: =$I$53 -> 1 | J57: 0.000 | K57: 0.000 | L57: 0.00 | M57: 0.00
A58: Load for Scalance X204-2 / S612 | C58: =FC360_Panel!F113 -> 0.000 | D58: =FC360_Panel!H113 -> 0.000 | E58: 24 | F58: 100% | G58: 0.00 | H58: 0.00 | I58: =$I$53 -> 1 | J58: 0.000 | K58: 0.000 | L58: 0.00 | M58: 0.00
A61: External VSYS supply output 2 | C61: =C$25 -> I norm [A] | D61: I alarm [A] | E61: U [V] | F61: n [%] | G61: P norm [W] | H61: P alarm [W] | I61: Quant. [pcs] | J61: I norm [A] | K61: I alarm [A] | L61: P norm [W] | M61: P alarm [W]
A62: External supply output 2 (VSYS_02) | C62: =FC360_Panel!F116 -> 0.000 | D62: =FC360_Panel!H116 -> 0.000 | E62: 24 | F62: =IF(21<E62,IF(E62<30,100%,80%),80%) -> 100% | G62: =C62*E62/F62 -> 0.00 | H62: =D62*E62/F62 -> 0.00 | I62: =IF(OR($C$109=2,$C$109=3,$C$109=4),1,0) -> 0 | J62: =C62*I62 -> 0.000 | K62: =D62*I62 -> 0.000 | L62: =G62*I62 -> 0.00 | M62: =H62*I62 -> 0.00
A63: Current on configurable I/O (I/Ox) | C63: =FC360_Panel!F117 -> 0.000 | D63: =FC360_Panel!H117 -> 0.000 | E63: 24 | F63: 100% | G63: 0.00 | H63: 0.00 | I63: =$I$62 -> 0 | J63: 0.000 | K63: 0.000 | L63: 0.00 | M63: 0.00
A64: Load for FCA2005 | C64: =FC360_Panel!F118 -> 0.000 | D64: =FC360_Panel!H118 -> 0.000 | E64: 24 | F64: 100% | G64: 0.00 | H64: 0.00 | I64: =$I$62 -> 0 | J64: 0.000 | K64: 0.000 | L64: 0.00 | M64: 0.00
A65: Load for FDCIO223 | C65: =FC360_Panel!F119 -> 0.000 | D65: =FC360_Panel!H119 -> 0.000 | E65: 24 | F65: 100% | G65: 0.00 | H65: 0.00 | I65: =$I$62 -> 0 | J65: 0.000 | K65: 0.000 | L65: 0.00 | M65: 0.00
A66: Load for FT2040 | C66: =FC360_Panel!F120 -> 0.000 | D66: =FC360_Panel!H120 -> 0.000 | E66: 24 | F66: 100% | G66: 0.00 | H66: 0.00 | I66: =$I$62 -> 0 | J66: 0.000 | K66: 0.000 | L66: 0.00 | M66: 0.00
A67: Load for Scalance X204-2 / S612 | C67: =FC360_Panel!F121 -> 0.000 | D67: =FC360_Panel!H121 -> 0.000 | E67: 24 | F67: 100% | G67: 0.00 | H67: 0.00 | I67: =$I$62 -> 0 | J67: 0.000 | K67: 0.000 | L67: 0.00 | M67: 0.00
L69: =L$25 -> P norm [W] | M69: =M$25 -> P alarm [W]
A70: Power consumption (Ex. Periboard) | L70: =SUM(L$43:L$67) -> 0.00 | M70: =SUM(M$43:M$67) -> 0.00
A72: Options
A73: Networking | C73: =C$25 -> I norm [A] | D73: I alarm [A] | E73: U [V] | F73: n [%] | G73: P norm [W] | H73: P alarm [W] | I73: Quant. [pcs] | J73: I norm [A] | K73: I alarm [A] | L73: P norm [W] | M73: P alarm [W]
A74: 1. Vernetzungsmodul (SAFEDLINK) | B74: FN2001-A1 | C74: 0.040 | D74: 0.040 | E74: 24 | F74: =IF(21<E74,IF(E74<30,100%,80%),80%) -> 100% | G74: =C74*E74/F74 -> 0.96 | H74: =D74*E74/F74 -> 0.96 | I74: =IF($C$109=1,0,IF(FC360_Panel!D132>=1,1,0)) -> 0 | L74: =I74*$G74 -> 0.00 | M74: =I74*$H74 -> 0.00
A75: 2. Vernetzungsmodul (SAFEDLINK) | B75: FN2001-A1 | C75: 0.025 | D75: 0.025 | E75: 24 | F75: =IF(21<E75,IF(E75<30,100%,80%),80%) -> 100% | G75: =C75*E75/F75 -> 0.60 | H75: =D75*E75/F75 -> 0.60 | I75: =IF($C$109=1,0,IF(FC360_Panel!D132>=2,1,0)) -> 0 | L75: =I75*$G75 -> 0.00 | M75: =I75*$H75 -> 0.00
A76: Repeater (SAFEDLINK) | B76: FN2002 | C76: 0.045 | D76: 0.045 | E76: 24 | F76: =IF(21<E76,IF(E76<30,100%,80%),80%) -> 100% | G76: =C76*E76/F76 -> 1.08 | H76: =D76*E76/F76 -> 1.08 | I76: =IF($C$109=1,0,IF(FC360_Panel!D133>=1,1,0)) -> 0 | L76: =I76*$G76 -> 0.00 | M76: =I76*$H76 -> 0.00
A77: LWL-Konvertermodul | C77: 0.200 | D77: 0.200 | E77: 24 | F77: =IF(21<E77,IF(E77<30,100%,80%),80%) -> 100% | G77: =C77*E77/F77 -> 4.80 | H77: =D77*E77/F77 -> 4.80 | I77: =IF($C$109=1,0,IF(FC360_Panel!D134>=1,1,0)) -> 0 | L77: =I77*$G77 -> 0.00 | M77: =I77*$H77 -> 0.00
A79: Communication
A80: Ethernet connection | C80: 0.015 | D80: 0.015 | E80: 24 | F80: =IF(21<E80,IF(E80<30,100%,80%),80%) -> 100% | G80: =C80*E80/F80 -> 0.36 | H80: =D80*E80/F80 -> 0.36 | I80: =IF(FC360_Panel!D137="YES",1,0) -> 0 | L80: =I80*$G80 -> 0.00 | M80: =I80*$H80 -> 0.00 | O80: YES | P80: NO
A81: No module | B81: - | C81: 0.000 | D81: 0.000 | E81: 0 | F81: 0% | G81: 0.00 | H81: 0.00 | I81: 0 | L81: =I81*$G81 -> 0.00 | M81: =I81*$H81 -> 0.00
A82: RS232 module (isolated) | B82: FCA2001-A1 | C82: 0.065 | D82: 0.065 | E82: 3.3 | F82: =IF(21<E82,IF(E82<30,100%,80%),80%) -> 80% | G82: =C82*E82/F82 -> 0.27 | H82: =D82*E82/F82 -> 0.27 | I82: =IF(FC360_Panel!D138="RS232 module (isolated)",1,0) -> 0 | L82: =I82*$G82 -> 0.00 | M82: =I82*$H82 -> 0.00
A83: RS485 module (isolated) | B83: FCA2002-A1 | C83: 0.065 | D83: 0.065 | E83: 3.3 | F83: =IF(21<E83,IF(E83<30,100%,80%),80%) -> 80% | G83: =C83*E83/F83 -> 0.27 | H83: =D83*E83/F83 -> 0.27 | I83: =IF(FC360_Panel!D138="RS485 module (isolated)",1,0) -> 0 | L83: =I83*$G83 -> 0.00 | M83: =I83*$H83 -> 0.00
A84: Printer
A85: Event printer | B85: FTO2002-A1 | C85: =FC360_Panel!F142 -> 0.050 | D85: =FC360_Panel!H142 -> 0.060 | E85: 24 | F85: =IF(21<E85,IF(E85<30,100%,80%),80%) -> 100% | G85: =C85*E85/F85 -> 1.20 | H85: =D85*E85/F85 -> 1.44 | I85: =IF($C$109=1,0,FC360_Panel!D142) -> 0 | L85: =I85*$G85 -> 0.00 | M85: =I85*$H85 -> 0.00
A87: Fire department periphery mod.
A88: Feuerwehrperipherie-Modul | B88: FCI2001-D1 | C88: 0.058 | D88: 0.062 | E88: 24 | F88: =IF(21<E88,IF(E88<30,100%,80%),80%) -> 100% | G88: =C88*E88/F88 -> 1.39 | H88: =D88*E88/F88 -> 1.49 | I88: =IF(OR($C$109=1,$C$109=5),0,FC360_Panel!D146) -> 0 | J88: =I88*C88 -> 0.000 | K88: =I88*D88 -> 0.000 | L88: =I88*$G88 -> 0.00 | M88: =I88*$H88 -> 0.00
A89: FBF | C89: =FC360_Panel!F147 -> 0.000 | D89: =FC360_Panel!H147 -> 0.000 | E89: 24 | F89: 100% | G89: 0.00 | H89: 0.00 | I89: =I$88 -> 0 | L89: 0.00 | M89: 0.00
A90: UeE | C90: =FC360_Panel!F148 -> 0.000 | D90: =FC360_Panel!H148 -> 0.000 | E90: 24 | F90: 100% | G90: 0.00 | H90: 0.00 | I90: =I$88 -> 0 | L90: 0.00 | M90: 0.00
A91: FSD | C91: =FC360_Panel!F149 -> 0.000 | D91: =FC360_Panel!H149 -> 0.000 | E91: 24 | F91: 100% | G91: 0.00 | H91: 0.00 | I91: =I$88 -> 0 | L91: 0.00 | M91: 0.00
A92: Kennleuchte | C92: =FC360_Panel!F150 -> 0.000 | D92: =FC360_Panel!H150 -> 0.000 | E92: 24 | F92: 100% | G92: 0.00 | H92: 0.00 | I92: =I$88 -> 0 | L92: 0.00 | M92: 0.00
A93: FSE | C93: =FC360_Panel!F151 -> 0.000 | D93: =FC360_Panel!H151 -> 0.000 | E93: 24 | F93: 100% | G93: 0.00 | H93: 0.00 | I93: =I$88 -> 0 | L93: 0.00 | M93: 0.00
A96: PMI-Options
A97: No module | B97: - | C97: 0.000 | D97: 0.000 | E97: 0 | F97: 0% | G97: 0.00 | H97: 0.00 | I97: =IF(FC360_Panel!D156="LED indicators(16 Zone)",1,0) -> 0 | L97: =I97*$G97 -> 0.00 | M97: =I97*$H97 -> 0.00 | O97: -
A98: LED indicators(32 Zone) | B98: FTO3603-Z1 | C98: 0.004 | D98: 0.060 | E98: 24 | F98: =IF(21<E98,IF(E98<30,100%,80%),80%) -> 100% | G98: 0.00 | H98: 0.72 | I98: =IF(FC360_Panel!D156="LED indicators(32 Zone)",1,0) -> 0 | L98: =I98*$G98 -> 0.00 | M98: =I98*$H98 -> 0.00 | O98: 32-zone LED indicator add-on
A99: Evacuation module(NL) | B99: FTO3601-H1 | C99: 0.000 | D99: 0.009 | E99: 24 | F99: =IF(21<E99,IF(E99<30,100%,80%),80%) -> 100% | G99: =2*C99*E99/F99 -> 0.00 | H99: =2*D99*E99/F99 -> 0.43 | I99: =IF(FC360_Panel!D156="Evacuation module(NL)",1,0) -> 0 | L99: =I99*$G99 -> 0.00 | M99: =I99*$H99 -> 0.00 | O99: EVAC indicator add-on
A100: Output card (4M)
A101: Output card (4M) | B101: FCA3602-Z1 | C101: 0.011 | D101: 0.063 | E101: 24 | F101: =IF(21<E101,IF(E101<30,100%,80%),80%) -> 100% | G101: =C101*E101/F101 -> 0.26 | H101: =D101*E101/F101 -> 1.51 | I101: =FC360_Panel!D174*FC360_Panel!D179 -> 0 | J101: =I101*C101 -> 0.000 | K101: =I101*D101 -> 0.000 | L101: =I101*$G101 -> 0.00 | M101: =I101*$H101 -> 0.00
A102: Output 1 | B102: =FC360_Panel!D162 -> RT-Fault | C102: =FC360_Panel!F162 -> 0.000 | D102: =FC360_Panel!H162 -> 0.000 | E102: 26.1 | F102: =IF(21<E102,IF(E102<30,100%,80%),80%) -> 100% | G102: =C102*E102/F102 -> 0.00 | H102: =D102*E102/F102 -> 0.00 | I102: 1 | L102: =I102*$G102 -> 0.00 | M102: =I102*$H102 -> 0.00
A103: Output 2 | B103: =FC360_Panel!D163 -> RT-Fire | C103: =FC360_Panel!F163 -> 0.000 | D103: =FC360_Panel!H163 -> 0.000 | E103: 26.1 | F103: =IF(21<E103,IF(E103<30,100%,80%),80%) -> 100% | G103: =C103*E103/F103 -> 0.00 | H103: =D103*E103/F103 -> 0.00 | I103: 1 | L103: =I103*$G103 -> 0.00 | M103: =I103*$H103 -> 0.00
A104: Output 3 | B104: =FC360_Panel!D164 -> Fire Control | C104: =FC360_Panel!F164 -> 0.000 | D104: =FC360_Panel!H164 -> 0.000 | E104: 26.1 | F104: =IF(21<E104,IF(E104<30,100%,80%),80%) -> 100% | G104: =C104*E104/F104 -> 0.00 | H104: =D104*E104/F104 -> 0.00 | I104: 1 | L104: =I104*$G104 -> 0.00 | M104: =I104*$H104 -> 0.00
A105: Output 4 | B105: =FC360_Panel!D165 -> Sounder Line | C105: =FC360_Panel!F165 -> 0.000 | D105: =FC360_Panel!H165 -> 0.000 | E105: 26.1 | F105: =IF(21<E105,IF(E105<30,100%,80%),80%) -> 100% | G105: =C105*E105/F105 -> 0.00 | H105: =D105*E105/F105 -> 0.00 | I105: 1 | L105: =I105*$G105 -> 0.00 | M105: =I105*$H105 -> 0.00
A106: Power consumption (Ex. Options) | L106: =L$25 -> P norm [W] | M106: =M$25 -> P alarm [W] | N106: RT-Falt [w]
L107: =SUM(L$74:L$105) -> 0.00 | M107: =SUM(M$74:M$105) -> 0.00 | N107: =SUM(IF(B102="RT-Fault",L102,0),IF(B103="RT-Fault",L103,0),IF(B104="RT-Fault",L104,0),IF(B105="RT-Fault",L105,0)) -> 0.00
A108: Panel
A109: Panel type: | B109: =VLOOKUP(C109,Panel_values!A3:L8,_xlfn.SINGLE(D109)+1,FALSE) -> FC361-ZZ | C109: =FC360_Panel!$E$41 -> 1 | D109: =FC360_Panel!$E$56 -> 1
A110: Periphery board type | B110: =IF(B109="--","--",VLOOKUP(C109,Panel_values!A58:E63,2,FALSE)) -> C-NET | C110: =IF(B110="--","",IF($C$109=1,1,IF($C$109=2,2,IF(OR($C$109=3,$C$109=4),4,0)))) -> 1 | D110: =IF(B110="--","","loops") -> loops
A111: Card cage type | B111: =IF(B109="--","--",VLOOKUP(C109,Panel_values!A58:E63,3,FALSE)) -> -- | C111: =IF(B111="--","",IF($C$109=2,2,IF($C$109=4,5,0))) ->  | D111: =IF(B111="--","","slots") -> 
A113: Own consumption | C113: =C$25 -> I norm [A] | D113: I alarm [A] | E113: U [V] | F113: n [%] | G113: P norm [W] | H113: P alarm [W] | I113: Quant. [pcs] | J113: I norm [A] | K113: I alarm [A] | L113: P norm [W] | M113: P alarm [W]
A114: PMI- & Mainboard (inkl. CPU) | C114: 0.091 | D114: 0.111 | E114: 24 | F114: =IF(21<E114,IF(E114<30,100%,80%),80%) -> 100% | G114: =C114*E114/F114 -> 2.17 | H114: =D114*E114/F114 -> 2.65
A115: Complete PMI & Mainboard | B115: FCM2004 | G115: =SUM(G114:G114) -> 2.17 | H115: =SUM(H114:H114) -> 2.65 | I115: 1 | L115: =I115*G115 -> 2.17 | M115: =I115*H115 -> 2.65
A117: 1st CPU CARD | B117: FCC2004 | C117: 0.140 | D117: 0.140 | E117: 24 | F117: =IF(21<E117,IF(E117<30,100%,80%),80%) -> 100% | G117: =C117*E117/F117 -> 3.36 | H117: =D117*E117/F117 -> 3.36
A118: 2st CPU CARD | B118: FCC2004 | C118: 0.140 | D118: 0.140 | E118: 24 | F118: =IF(21<E118,IF(E118<30,100%,80%),80%) -> 100% | G118: =C118*E118/F118 -> 3.36 | H118: =D118*E118/F118 -> 3.36
A119: Communication Card | B119: FCC2005 | C119: 0.030 | D119: 0.030 | E119: 24 | F119: =IF(21<E119,IF(E119<30,100%,80%),80%) -> 100% | G119: =C119*E119/F119 -> 0.72 | H119: =D119*E119/F119 -> 0.72
A120: Complete CPU card cage | G120: =SUM(G117:G119) -> 7.44 | H120: =SUM(H117:H119) -> 7.44 | I120: =IF($C$109=6,1,0) -> 0 | L120: =I120*G120 -> 0.00 | M120: =I120*H120 -> 0.00
A122: LED indicator (internal) | B122: FTO2002-A1 | C122: 0.004 | D122: 0.070 | E122: 24 | F122: =IF(21<E122,IF(E122<30,100%,80%),80%) -> 100% | G122: =C122*E122/F122 -> 0.10 | H122: =D122*E122/F122 -> 1.68 | I122: =VLOOKUP(C109,Panel_values!A31:L36,_xlfn.SINGLE(D109)+1,FALSE) -> 0 | L122: =I122*G122 -> 0.00 | M122: =I122*H122 -> 0.00
A123: FBA-CH operating unit | B123: FTO2004-C1 | C123: 0.015 | D123: 0.030 | E123: 24 | F123: =IF(21<E123,IF(E123<30,100%,80%),80%) -> 100% | G123: =C123*E123/F123 -> 0.36 | H123: =D123*E123/F123 -> 0.72 | I123: =VLOOKUP(C109,Panel_values!A40:L45,_xlfn.SINGLE(D109)+1,FALSE) -> 0 | L123: =I123*G123 -> 0.00 | M123: =I123*H123 -> 0.00
A124: EVAC-NL operating unit | B124: FTO2007-N1 | C124: 0.006 | D124: 0.030 | E124: 24 | F124: =IF(21<E124,IF(E124<30,100%,80%),80%) -> 100% | G124: =C124*E124/F124 -> 0.14 | H124: =D124*E124/F124 -> 0.72 | I124: =VLOOKUP(C109,Panel_values!A49:L54,_xlfn.SINGLE(D109)+1,FALSE) -> 0 | L124: =I124*G124 -> 0.00 | M124: =I124*H124 -> 0.00
A126: Peripheral board (2-loop) | C126: 0.003 | D126: 0.003 | E126: 24 | F126: =IF(21<E126,IF(E126<30,100%,80%),80%) -> 100% | G126: =C126*E126/F126 -> 0.06 | H126: =D126*E126/F126 -> 0.06
A127: P2 UART (--> sheet calculation_C-NET_x)
A128: Complete Peripheral Board 2-L | B128: FCI2010/02 | G128: =SUM(G126:G127) -> 0.06 | H128: =SUM(H126:H127) -> 0.06 | I128: =IF(OR($C$109=1,$C$109=2),1,0) -> 1 | L128: =I128*G128 -> 0.06 | M128: =I128*H128 -> 0.06
A130: Peripheral board (4-loop) | C130: =0.133-(2*0.04) -> 0.053 | D130: =0.183-(2*0.04) -> 0.103 | E130: 24 | F130: =IF(21<E130,IF(E130<30,100%,80%),80%) -> 100% | G130: =C130*E130/F130 -> 1.27 | H130: =D130*E130/F130 -> 2.47
A131: P2 UART (--> sheet calculation_C-NET_x)
A132: Complete Peripheral Board 4-L | B132: FCI2004 | G132: =SUM(G130:G131) -> 1.27 | H132: =SUM(H130:H131) -> 2.47 | I132: =IF(OR($C$109=3,$C$109=4),1,0) -> 0 | L132: =I132*G132 -> 0.00 | M132: =I132*H132 -> 0.00
A134: Peripheral Board T | C134: 0.010 | D134: 0.010 | E134: 24 | F134: =IF(21<E134,IF(E134<30,100%,80%),80%) -> 100% | G134: =C134*E134/F134 -> 0.24 | H134: =D134*E134/F134 -> 0.24
A135: Complete Peripheral Board T | B135: FTI2001 | G135: =SUM(G134) -> 0.24 | H135: =SUM(H134) -> 0.24 | I135: =IF($C$109=5,1,0) -> 0 | L135: =I135*G135 -> 0.00 | M135: =I135*H135 -> 0.00
A136: Second P2 loop | C136: 0.003 | D136: 0.003 | E136: 24 | L136: =IF(C109=2, C136*E136,0) -> 0.000 | M136: =IF(C109=2, D136*E136,0) -> 0.00
L137: =L$25 -> P norm [W] | M137: =M$25 -> P alarm [W]
A138: Power consumption (own) | C138: =L138/E138 -> 0.093 | D138: =M138/E138 -> 0.113 | E138: 24 | L138: =SUM(L115:L136) -> 2.24 | M138: =SUM(M115:M136) -> 2.72
A140: I2C check | B140: Total | C140: PMI | D140: Perib | E140: PMI-Opt
A141: Number of I2C participants | B141: =SUM(C141:E141) -> 4 | C141: 3 | D141: 1 | E141: =I98+2*I99+SUM(I122:I124) -> 0
A143: Supply 1: Power calculation
A144: Power calculation | J144: =J$25 -> I norm [A] | K144: =K$25 -> I alarm [A] | L144: =L$25 -> P norm [W] | M144: =M$25 -> P alarm [W]
A145: Field devices | J145: =L145/24 -> 0.039 | K145: 0.039 | L145: =IF($B$109="--",0,L32) -> 0.94 | M145: =IF($B$109="--",0,M32) -> 0.94
A146: Card cages with supply 1 | J146: =L146/24 -> 0.000 | K146: =M146/24 -> 0.000 | L146: =IF($B$109="--",0,L39) -> 0.00 | M146: =IF($B$109="--",0,M39) -> 0.00
A147: Input / Outputs | J147: 0.000 | K147: 0.000 | L147: =IF($B$109="--",0,L70) -> 0.00 | M147: =IF($B$109="--",0,M70) -> 0.00
A148: Options | J148: =L148/24 -> 0.000 | K148: 0.000 | L148: =IF($B$109="--",0,L107) -> 0.00 | M148: =IF($B$109="--",0,M107) -> 0.00
A149: Panel | J149: 0.093 | K149: 0.113 | L149: =IF($B$109="--",0,L138) -> 2.24 | M149: =IF($B$109="--",0,M138) -> 2.72
J151: =J$25 -> I norm [A] | K151: =K$25 -> I alarm [A] | L151: =L$25 -> P norm [W] | M151: =M$25 -> P alarm [W]
A152: Total | J152: =L152/24 -> 0.132 | K152: =M152/24 -> 0.152 | L152: =SUM(L145:L149) -> 3.17 | M152: =SUM(M145:M149) -> 3.65
A154: Supply 2: Power calculation
A155: Power calculation | J155: =J$25 -> I norm [A] | K155: =K$25 -> I alarm [A] | L155: =L$25 -> P norm [W] | M155: =M$25 -> P alarm [W]
A156: Card cages with supply 2 | J156: =L156/24 -> 0.000 | K156: =M156/24 -> 0.000 | L156: 0.00 | M156: 0.00
A158: Supply 3: Power calculation
A159: Power calculation | J159: =J$25 -> I norm [A] | K159: =K$25 -> I alarm [A] | L159: =L$25 -> P norm [W] | M159: =M$25 -> P alarm [W]
A160: Card cages with supply 3 | J160: =L160/24 -> 0.000 | K160: =M160/24 -> 0.000 | L160: 0.00 | M160: 0.00
A162: Battery standby-time
A164: Required standby-time | C164: =FC360_Panel!D224 -> 24 | D164: h
A165: Required alarm-time (after standby) | C165: =FC360_Panel!D225 -> 0.5 | D165: h
A167: Supply & Battery check for Supply1
A169: Nominal required battery | C169: =$J$152*0.5+$K$152*$C$165+($J$152-N107/24)*($C$164-0.5) -> 3.25 | D169: Ah
A170: Security factor | C170: =VLOOKUP($C$164,$B$221:$C$225,2,TRUE) -> 1.25
A171: Required battery | C171: =C169*C170 -> 4.06 | D171: Ah
A172: Available battery | B172: =VLOOKUP(C171,$E$221:$H$229,3,TRUE) -> FA2003-A1 | C172: =IF(C171=0,0,VLOOKUP(C171,$E$221:$H$229,2,TRUE)) -> 7 | D172: Ah | E172: =VLOOKUP(C171,$E$221:$H$228,4,TRUE) -> A5Q00019353
A173: Housing type: | C173: =VLOOKUP($C$109,Panel_values!$A$85:$L$90,_xlfn.SINGLE(Panel_comp!$D$109)+1,FALSE) -> Compact
A174: Max. fitting batteries | B174: =VLOOKUP(C174,$F$221:$H$229,2,TRUE) -> FA2004-A1 | C174: =VLOOKUP($C$109,Panel_values!$A$94:$L$100,_xlfn.SINGLE($D$109)+1,FALSE) -> 12 | D174: Ah | E174: =VLOOKUP(C174,$F$221:$H$228,3,TRUE) -> A5Q00019354
A175: Battery check code | C175: =FC360_Panel!I246 -> 3
A178: Supply calculation
A179: Battery load current for available type | C179: =IF(C172="no",0,C172/20) -> 0.350 | D179: A
A180: Max. current for power supply | C180: =MAX($J$152*1.1+C179,$K$152*1.1) -> 0.495 | D180: A
A181: Required power supply | C181: =C180*24 -> 12 | D181: W
A182: Delivered power supply | B182: =VLOOKUP(C182,$G$234:$I$238,2,TRUE) -> FP2001-A1 | C182: =VLOOKUP($C$109,Panel_values!$A$67:$L$72,_xlfn.SINGLE($D$109)+1,FALSE) -> 70 | D182: W | E182: =VLOOKUP(C182,$G$234:$I$238,3,TRUE) -> see docu
A183: Available power supply | B183: =VLOOKUP(C183,$G$234:$I$238,2,TRUE) -> FP2001-A1 | C183: =VLOOKUP(C180,$E$234:$I$239,3,TRUE) -> 70 | D183: W | E183: =VLOOKUP(C183,$G$234:$I$238,3,TRUE) -> see docu
A184: Housing type: | C184: =C173 -> Compact
A185: Max. fitting supply | B185: =VLOOKUP(C185,$G$234:$I$238,2,TRUE) -> FP2001-A1 | C185: =VLOOKUP($C$109,Panel_values!$A$76:$L$81,_xlfn.SINGLE($D$109)+1,FALSE) -> 70 | D185: W | E185: =VLOOKUP(C185,$G$234:$I$238,3,TRUE) -> see docu
A186: Supply check code | C186: =FC360_Panel!I249 -> 3
A189: Supply & Battery check for Supply2
A191: Nominal required battery | C191: =$J$156*$C$164+$K$156*$C$165 -> 0.00 | D191: Ah
A192: Security factor | C192: =VLOOKUP($C$164,$B$221:$C$225,2,TRUE) -> 1.25
A193: Required battery | C193: =C191*C192 -> 0.00 | D193: Ah
A194: Available battery | B194: =VLOOKUP(C193,$E$221:$H$229,3,TRUE) -> -- | C194: =IF(C193=0,0,VLOOKUP(C193,$E$221:$H$229,2,TRUE)) -> 0 | D194: Ah | E194: =VLOOKUP(C193,$E$221:$H$228,4,TRUE) -> 
A197: Supply calculation
A198: Battery load current for available type | C198: =IF(C194="no",0,C194/10) -> 0.000 | D198: A
A199: Max. current for power supply | C199: =MAX($J$156*1.1+C198,$K$156*1.1) -> 0.000 | D199: A
A200: Required power supply | C200: =C199*24 -> 0 | D200: W
A201: Available power supply | B201: =VLOOKUP(C201,$G$234:$I$238,2,TRUE) -> -- | C201: =VLOOKUP(C199,$E$234:$I$239,3,TRUE) -> -- | D201: W | E201: =VLOOKUP(C201,$G$234:$I$238,3,TRUE) -> 
A203: Supply & Battery check for Supply3
A205: Nominal required battery | C205: =$J$160*$C$164+$K$160*$C$165 -> 0.00 | D205: Ah
A206: Security factor | C206: =VLOOKUP($C$164,$B$221:$C$225,2,TRUE) -> 1.25
A207: Required battery | C207: =C205*C206 -> 0.00 | D207: Ah
A208: Available battery | B208: =VLOOKUP(C207,$E$221:$H$229,3,TRUE) -> -- | C208: =IF(C207=0,0,VLOOKUP(C207,$E$221:$H$229,2,TRUE)) -> 0 | D208: Ah | E208: =VLOOKUP(C207,$E$221:$H$228,4,TRUE) -> 
A211: Supply calculation
A212: Battery load current for available type | C212: =IF(C208="no",0,C208/10) -> 0.000 | D212: A
A213: Max. current for power supply | C213: =MAX($J$160*1.1+C212,$K$160*1.1) -> 0.000 | D213: A
A214: Required power supply | C214: =C213*24 -> 0 | D214: W
A215: Available power supply | B215: =VLOOKUP(C215,$G$234:$I$238,2,TRUE) -> -- | C215: =VLOOKUP(C213,$E$234:$I$239,3,TRUE) -> -- | D215: W | E215: =VLOOKUP(C215,$G$234:$I$238,3,TRUE) -> 
A217: Table for supplys and battery checks
B219: Security factor table | E219: Table of available batteries | K219: Table of failure messages
B220: t [h] | C220: f [1] | E220: [Ah] | F220: [Ah] | G220: [Type] | H220: Mat. Nr. | K220: 0 | L220: Use bigger battery & additional housing
B221: 0 | C221: =1.25*1.1 -> 1.375 | E221: 0.0 | F221: -- | G221: -- | K221: 1 | L221: Use bigger battery
B222: 12.1 | C222: 1.25 | E222: 0.0001 | F222: 7 | G222: FA2003-A1 | H222: A5Q00019353 | K222: 2 | L222: Use additional housing
B223: 24.1 | C223: 1 | E223: 7.0 | F223: 12 | G223: FA2004-A1 | H223: A5Q00019354 | K223: 3 | L223: O.K.
B224: 30.1 | C224: 1 | E224: 12.0 | F224: 25 | G224: BAT12-25 | H224: S54302-Z102-A1
B225: 72.1 | C225: 1 | E225: 25.0 | F225: no | G225: -- | H225: --
E232: Power supply table | K232: Table of failure messages
E233: I, [A] | F233: I, [A] | G233: [W] | H233: [Type] | I233: Mat. Nr. | K233: 0 | L233: Use additional supply & additional housing
E234: 0.000 | F234: 0.000 | G234: -- | H234: -- | K234: 1 | L234: Use additional supply
E235: 0.0001 | F235: =G235/24 -> 2.917 | G235: 70 | H235: FP2001-A1 | I235: see docu | K235: 2 | L235: Use additional housing
E236: =F235+0.001 -> 2.918 | F236: =G236/24 -> 6.250 | G236: 150 | H236: SV 24V-150W | I236: see docu | K236: 3 | L236: O.K.
E237: =F236+0.001 -> 6.251 | F237: =G237/24 -> 12.500 | G237: 300 | H237: 2x SV 24V-150W | I237: see docu
E238: =F237+0.001 -> 12.501 | F238: =G238/24 -> 18.750 | G238: 450 | H238: 3x SV 24V-150W | I238: see docu
E239: =F238+0.001 -> 18.751 | G239: -- | H239: -- | I239: --
